Organisation Code,BodyName,ServiceLabel,ServiceDivisionLabel,ExpenditureCategory,DetailedExpenditureType,DetailedExpenditureCode,DatePaid,TransactionNumber,NetAmount,CapitalOrRevenue,SupplierName,Procurement Card
Http://opendatacommunities.org/id/metropolitan-district-council/leeds,Leeds City Council,Central & Corporate,Commercial Services Trading Services,Supplies and Services,Operational Materials,205,07-Nov-2014,1411-00001,190.00,R,A & A Electrical Distributors Ltd,No 
Http://opendatacommunities.org/id/metropolitan-district-council/leeds,Leeds City Council,Central & Corporate,Commercial Services Trading Services,Supplies and Services,Operational Materials,205,14-Nov-2014,1411-00002,64.10,R,A & A Electrical Distributors Ltd,No 
Http://opendatacommunities.org/id/metropolitan-district-council/leeds,Leeds City Council,Central & Corporate,Benefits,Supplies and Services,Bank Charges,263,17-Nov-2014,1411-00003,42.00,R,REDACTED PERSONAL DATA,No 
Http://opendatacommunities.org/id/metropolitan-district-council/leeds,Leeds City Council,Environment & Housing,Environmental Health,Capital,Construction,3,07-Nov-2014,1411-00004,15716.00,C,A & P Crontractors Ltd,No 
Http://opendatacommunities.org/id/metropolitan-district-council/leeds,Leeds City Council,Childrens Services,Safeguarding Targeted & Specialist,Third Party Payments,Section 17,551,27-Nov-2014,1411-00005,1100.00,R,A Ahmadi,No 
Http://opendatacommunities.org/id/metropolitan-district-council/leeds,Leeds City Council,Central & Corporate,Commercial Services Trading Services,Supplies and Services,Operational Materials,205,21-Nov-2014,1411-00006,3.40,R,A Andrews & Sons (Marbles & Tiles),No 
Http://opendatacommunities.org/id/metropolitan-district-council/leeds,Leeds City Council,Central & Corporate,Commercial Services Trading Services,Supplies and Services,Operational Materials,205,19-Nov-2014,1411-00007,718.00,R,A Andrews & Sons (Marbles & Tiles),No 
Http://opendatacommunities.org/id/metropolitan-district-council/leeds,Leeds City Council,Central & Corporate,Commercial Services Trading Services,Supplies and Services,Operational Materials,205,12-Nov-2014,1411-00008,510.00,R,A Andrews & Sons (Marbles & Tiles),No 
Http://opendatacommunities.org/id/metropolitan-district-council/leeds,Leeds City Council,Central & Corporate,Commercial Services Trading Services,Supplies and Services,Operational Materials,205,26-Nov-2014,1411-00009,60.78,R,A Andrews & Sons (Marbles & Tiles),No 
Http://opendatacommunities.org/id/metropolitan-district-council/leeds,Leeds City Council,Central & Corporate,Commercial Services Trading Services,Supplies and Services,Operational Materials,205,10-Nov-2014,1411-00010,80.00,R,A Andrews & Sons (Marbles & Tiles),No 
Http://opendatacommunities.org/id/metropolitan-district-council/leeds,Leeds City Council,Central & Corporate,Commercial Services Trading Services,Supplies and Services,Operational Materials,205,12-Nov-2014,1411-00011,510.00,R,A Andrews & Sons (Marbles & Tiles),No 
Http://opendatacommunities.org/id/metropolitan-district-council/leeds,Leeds City Council,Central & Corporate,Commercial Services Trading Services,Supplies and Services,Stores - Central And Other Depots,005,28-Nov-2014,1411-00012,643.80,R,A Andrews & Sons (Marbles & Tiles),No 
Http://opendatacommunities.org/id/metropolitan-district-council/leeds,Leeds City Council,Adult Social Care,Assessment And Care Management,Transfer Payments,Direct Payments,626,10-Nov-2014,1411-00013,400.00,R,REDACTED PERSONAL DATA,No 
Http://opendatacommunities.org/id/metropolitan-district-council/leeds,Leeds City Council,City Development,Libraries  Arts & Heritage,Supplies and Services,Other Hired And Contracted Services,265,28-Nov-2014,1411-00014,100.00,R,REDACTED PERSONAL DATA,No 
Http://opendatacommunities.org/id/metropolitan-district-council/leeds,Leeds City Council,City Development,Employment & Skills,Supplies and Services,Other Hired And Contracted Services,265,21-Nov-2014,1411-00015,248.19,R,REDACTED PERSONAL DATA,No 
Http://opendatacommunities.org/id/metropolitan-district-council/leeds,Leeds City Council,City Development,Employment & Skills,Supplies and Services,Other Hired And Contracted Services,265,28-Nov-2014,1411-00016,248.19,R,REDACTED PERSONAL DATA,No 
Http://opendatacommunities.org/id/metropolitan-district-council/leeds,Leeds City Council,City Development,Employment & Skills,Supplies and Services,Other Hired And Contracted Services,265,07-Nov-2014,1411-00017,248.19,R,REDACTED PERSONAL DATA,No 
Http://opendatacommunities.org/id/metropolitan-district-council/leeds,Leeds City Council,City Development,Employment & Skills,Supplies and Services,Other Hired And Contracted Services,265,14-Nov-2014,1411-00018,248.19,R,REDACTED PERSONAL DATA,No 
Http://opendatacommunities.org/id/metropolitan-district-council/leeds,Leeds City Council,City Development,Recreation,Income,Sporting & Other Recreational Fees,928,13-Nov-2014,1411-00019,39.60,R,REDACTED PERSONAL DATA,No 
Http://opendatacommunities.org/id/metropolitan-district-council/leeds,Leeds City Council,Adult Social Care,Roseville Enterprises,Supplies and Services,Operational Furniture And Equipment,203,21-Nov-2014,1411-00020,443.24,R,A D G Engineering Ltd,No 
Http://opendatacommunities.org/id/metropolitan-district-council/leeds,Leeds City Council,City Development,Recreation,Income,Sporting & Other Recreational Fees,928,13-Nov-2014,1411-00021,36.90,R,REDACTED PERSONAL DATA,No 
Http://opendatacommunities.org/id/metropolitan-district-council/leeds,Leeds City Council,Childrens Services,Safeguarding Targeted & Specialist,Third Party Payments,Rents (non supported),552,04-Nov-2014,1411-00022,387.50,R,A G Webb,No 
Http://opendatacommunities.org/id/metropolitan-district-council/leeds,Leeds City Council,Central & Corporate,Commercial Services Trading Services,Supplies and Services,Operational Materials,205,28-Nov-2014,1411-00023,36.68,R,A J H  Pump Supply & Repair Ltd,No 
Http://opendatacommunities.org/id/metropolitan-district-council/leeds,Leeds City Council,Central & Corporate,Commercial Services Trading Services,Supplies and Services,Operational Materials,205,28-Nov-2014,1411-00024,35.27,R,A J H  Pump Supply & Repair Ltd,No 
Http://opendatacommunities.org/id/metropolitan-district-council/leeds,Leeds City Council,Central & Corporate,Commercial Services Trading Services,Supplies and Services,Operational Materials,205,28-Nov-2014,1411-00025,202.81,R,A J H  Pump Supply & Repair Ltd,No 
Http://opendatacommunities.org/id/metropolitan-district-council/leeds,Leeds City Council,Central & Corporate,Commercial Services Trading Services,Supplies and Services,Operational Materials,205,28-Nov-2014,1411-00026,139.15,R,A J H  Pump Supply & Repair Ltd,No 
Http://opendatacommunities.org/id/metropolitan-district-council/leeds,Leeds City Council,Central & Corporate,Commercial Services Trading Services,Supplies and Services,Operational Materials,205,28-Nov-2014,1411-00027,458.00,R,A J H  Pump Supply & Repair Ltd,No 
Http://opendatacommunities.org/id/metropolitan-district-council/leeds,Leeds City Council,Central & Corporate,Commercial Services Trading Services,Supplies and Services,Operational Materials,205,28-Nov-2014,1411-00028,284.66,R,A J H  Pump Supply & Repair Ltd,No 
Http://opendatacommunities.org/id/metropolitan-district-council/leeds,Leeds City Council,Central & Corporate,Commercial Services Trading Services,Supplies and Services,Operational Materials,205,28-Nov-2014,1411-00029,103.00,R,A J H  Pump Supply & Repair Ltd,No 
Http://opendatacommunities.org/id/metropolitan-district-council/leeds,Leeds City Council,Central & Corporate,Commercial Services Trading Services,Supplies and Services,Operational Materials,205,28-Nov-2014,1411-00030,125.00,R,A J H  Pump Supply & Repair Ltd,No 
Http://opendatacommunities.org/id/metropolitan-district-council/leeds,Leeds City Council,Central & Corporate,Commercial Services Trading Services,Supplies and Services,Operational Materials,205,28-Nov-2014,1411-00031,33.22,R,A J H  Pump Supply & Repair Ltd,No 
Http://opendatacommunities.org/id/metropolitan-district-council/leeds,Leeds City Council,Central & Corporate,Commercial Services Trading Services,Supplies and Services,Operational Materials,205,28-Nov-2014,1411-00032,7.04,R,A J H  Pump Supply & Repair Ltd,No 
Http://opendatacommunities.org/id/metropolitan-district-council/leeds,Leeds City Council,Central & Corporate,Commercial Services Trading Services,Supplies and Services,Operational Materials,205,28-Nov-2014,1411-00033,285.21,R,A J H  Pump Supply & Repair Ltd,No 
Http://opendatacommunities.org/id/metropolitan-district-council/leeds,Leeds City Council,Central & Corporate,Commercial Services Trading Services,Supplies and Services,Operational Materials,205,28-Nov-2014,1411-00034,95.00,R,A J H  Pump Supply & Repair Ltd,No 
Http://opendatacommunities.org/id/metropolitan-district-council/leeds,Leeds City Council,Central & Corporate,Commercial Services Trading Services,Supplies and Services,Operational Materials,205,28-Nov-2014,1411-00035,453.00,R,A J H  Pump Supply & Repair Ltd,No 
Http://opendatacommunities.org/id/metropolitan-district-council/leeds,Leeds City Council,Central & Corporate,Commercial Services Trading Services,Supplies and Services,Operational Materials,205,28-Nov-2014,1411-00036,794.00,R,A J H  Pump Supply & Repair Ltd,No 
Http://opendatacommunities.org/id/metropolitan-district-council/leeds,Leeds City Council,Central & Corporate,Commercial Services Trading Services,Supplies and Services,Operational Materials,205,21-Nov-2014,1411-00037,29.54,R,A J H  Pump Supply & Repair Ltd,No 
Http://opendatacommunities.org/id/metropolitan-district-council/leeds,Leeds City Council,Central & Corporate,Commercial Services Trading Services,Supplies and Services,Operational Materials,205,21-Nov-2014,1411-00038,845.00,R,A J H  Pump Supply & Repair Ltd,No 
Http://opendatacommunities.org/id/metropolitan-district-council/leeds,Leeds City Council,Central & Corporate,Commercial Services Trading Services,Supplies and Services,Operational Materials,205,28-Nov-2014,1411-00039,78.05,R,A J H  Pump Supply & Repair Ltd,No 
Http://opendatacommunities.org/id/metropolitan-district-council/leeds,Leeds City Council,Central & Corporate,Commercial Services Trading Services,Supplies and Services,Other Hired And Contracted Services,265,28-Nov-2014,1411-00040,842.00,R,A J H  Pump Supply & Repair Ltd,No 
Http://opendatacommunities.org/id/metropolitan-district-council/leeds,Leeds City Council,Central & Corporate,Commercial Services Trading Services,Supplies and Services,Operational Materials,205,28-Nov-2014,1411-00041,746.00,R,A J H  Pump Supply & Repair Ltd,No 
Http://opendatacommunities.org/id/metropolitan-district-council/leeds,Leeds City Council,Central & Corporate,Commercial Services Trading Services,Supplies and Services,Operational Materials,205,07-Nov-2014,1411-00042,1943.00,R,A J H  Pump Supply & Repair Ltd,No 
Http://opendatacommunities.org/id/metropolitan-district-council/leeds,Leeds City Council,Central & Corporate,Commercial Services Trading Services,Supplies and Services,Operational Materials,205,07-Nov-2014,1411-00043,11.90,R,A J H  Pump Supply & Repair Ltd,No 
Http://opendatacommunities.org/id/metropolitan-district-council/leeds,Leeds City Council,Central & Corporate,Commercial Services Trading Services,Supplies and Services,Operational Materials,205,25-Nov-2014,1411-00044,64.08,R,A J H  Pump Supply & Repair Ltd,No 
Http://opendatacommunities.org/id/metropolitan-district-council/leeds,Leeds City Council,Central & Corporate,Commercial Services Trading Services,Supplies and Services,Operational Materials,205,07-Nov-2014,1411-00045,32.40,R,A J H  Pump Supply & Repair Ltd,No 
Http://opendatacommunities.org/id/metropolitan-district-council/leeds,Leeds City Council,Central & Corporate,Commercial Services Trading Services,Supplies and Services,Operational Materials,205,07-Nov-2014,1411-00046,421.80,R,A J H  Pump Supply & Repair Ltd,No 
Http://opendatacommunities.org/id/metropolitan-district-council/leeds,Leeds City Council,Central & Corporate,Commercial Services Trading Services,Supplies and Services,Operational Materials,205,04-Nov-2014,1411-00047,87.72,R,A J H  Pump Supply & Repair Ltd,No 
Http://opendatacommunities.org/id/metropolitan-district-council/leeds,Leeds City Council,Central & Corporate,Commercial Services Trading Services,Supplies and Services,Operational Materials,205,07-Nov-2014,1411-00048,434.50,R,A J H  Pump Supply & Repair Ltd,No 
Http://opendatacommunities.org/id/metropolitan-district-council/leeds,Leeds City Council,Central & Corporate,Commercial Services Trading Services,Supplies and Services,Operational Materials,205,07-Nov-2014,1411-00049,175.50,R,A J H  Pump Supply & Repair Ltd,No 
Http://opendatacommunities.org/id/metropolitan-district-council/leeds,Leeds City Council,Central & Corporate,Commercial Services Trading Services,Supplies and Services,Operational Materials,205,07-Nov-2014,1411-00050,15.00,R,A J H  Pump Supply & Repair Ltd,No 
Http://opendatacommunities.org/id/metropolitan-district-council/leeds,Leeds City Council,Central & Corporate,Commercial Services Trading Services,Supplies and Services,Operational Materials,205,28-Nov-2014,1411-00051,-386.40,R,A J H  Pump Supply & Repair Ltd,No 
Http://opendatacommunities.org/id/metropolitan-district-council/leeds,Leeds City Council,Central & Corporate,Commercial Services Trading Services,Supplies and Services,Operational Materials,205,28-Nov-2014,1411-00052,65.70,R,A J H  Pump Supply & Repair Ltd,No 
Http://opendatacommunities.org/id/metropolitan-district-council/leeds,Leeds City Council,Central & Corporate,Commercial Services Trading Services,Supplies and Services,Operational Materials,205,28-Nov-2014,1411-00053,799.00,R,A J H  Pump Supply & Repair Ltd,No 
Http://opendatacommunities.org/id/metropolitan-district-council/leeds,Leeds City Council,Central & Corporate,Commercial Services Trading Services,Supplies and Services,Operational Materials,205,28-Nov-2014,1411-00054,198.37,R,A J H  Pump Supply & Repair Ltd,No 
Http://opendatacommunities.org/id/metropolitan-district-council/leeds,Leeds City Council,Central & Corporate,Commercial Services Trading Services,Supplies and Services,Operational Materials,205,28-Nov-2014,1411-00055,75.00,R,A J H  Pump Supply & Repair Ltd,No 
Http://opendatacommunities.org/id/metropolitan-district-council/leeds,Leeds City Council,Central & Corporate,Commercial Services Trading Services,Supplies and Services,Operational Materials,205,28-Nov-2014,1411-00056,38.94,R,A J H  Pump Supply & Repair Ltd,No 
Http://opendatacommunities.org/id/metropolitan-district-council/leeds,Leeds City Council,Central & Corporate,Commercial Services Trading Services,Supplies and Services,Operational Materials,205,28-Nov-2014,1411-00057,242.40,R,A J H  Pump Supply & Repair Ltd,No 
Http://opendatacommunities.org/id/metropolitan-district-council/leeds,Leeds City Council,Central & Corporate,Commercial Services Trading Services,Supplies and Services,Operational Materials,205,21-Nov-2014,1411-00058,54.00,R,A J H  Pump Supply & Repair Ltd,No 
Http://opendatacommunities.org/id/metropolitan-district-council/leeds,Leeds City Council,Central & Corporate,Commercial Services Trading Services,Supplies and Services,Operational Materials,205,25-Nov-2014,1411-00059,38.50,R,A J H  Pump Supply & Repair Ltd,No 
Http://opendatacommunities.org/id/metropolitan-district-council/leeds,Leeds City Council,Central & Corporate,Commercial Services Trading Services,Supplies and Services,Operational Materials,205,28-Nov-2014,1411-00060,60.11,R,A J H  Pump Supply & Repair Ltd,No 
Http://opendatacommunities.org/id/metropolitan-district-council/leeds,Leeds City Council,Central & Corporate,Commercial Services Trading Services,Supplies and Services,Operational Materials,205,21-Nov-2014,1411-00061,23.70,R,A J H  Pump Supply & Repair Ltd,No 
Http://opendatacommunities.org/id/metropolitan-district-council/leeds,Leeds City Council,Central & Corporate,Commercial Services Trading Services,Supplies and Services,Operational Materials,205,25-Nov-2014,1411-00062,72.00,R,A J H  Pump Supply & Repair Ltd,No 
Http://opendatacommunities.org/id/metropolitan-district-council/leeds,Leeds City Council,Central & Corporate,Commercial Services Trading Services,Supplies and Services,Operational Materials,205,25-Nov-2014,1411-00063,9.80,R,A J H  Pump Supply & Repair Ltd,No 
Http://opendatacommunities.org/id/metropolitan-district-council/leeds,Leeds City Council,Central & Corporate,Commercial Services Trading Services,Supplies and Services,Operational Materials,205,21-Nov-2014,1411-00064,31.00,R,A J H  Pump Supply & Repair Ltd,No 
Http://opendatacommunities.org/id/metropolitan-district-council/leeds,Leeds City Council,Central & Corporate,Commercial Services Trading Services,Supplies and Services,Operational Materials,205,25-Nov-2014,1411-00065,39.00,R,A J H  Pump Supply & Repair Ltd,No 
Http://opendatacommunities.org/id/metropolitan-district-council/leeds,Leeds City Council,Central & Corporate,Commercial Services Trading Services,Supplies and Services,Operational Materials,205,28-Nov-2014,1411-00066,228.41,R,A J H  Pump Supply & Repair Ltd,No 
Http://opendatacommunities.org/id/metropolitan-district-council/leeds,Leeds City Council,Central & Corporate,Commercial Services Trading Services,Supplies and Services,Operational Materials,205,21-Nov-2014,1411-00067,40.03,R,A J H  Pump Supply & Repair Ltd,No 
Http://opendatacommunities.org/id/metropolitan-district-council/leeds,Leeds City Council,Central & Corporate,Commercial Services Trading Services,Supplies and Services,Operational Materials,205,21-Nov-2014,1411-00068,15.54,R,A J H  Pump Supply & Repair Ltd,No 
Http://opendatacommunities.org/id/metropolitan-district-council/leeds,Leeds City Council,Central & Corporate,Commercial Services Trading Services,Supplies and Services,Operational Materials,205,21-Nov-2014,1411-00069,115.00,R,A J H  Pump Supply & Repair Ltd,No 
Http://opendatacommunities.org/id/metropolitan-district-council/leeds,Leeds City Council,Central & Corporate,Commercial Services Trading Services,Supplies and Services,Operational Materials,205,21-Nov-2014,1411-00070,80.65,R,A J H  Pump Supply & Repair Ltd,No 
Http://opendatacommunities.org/id/metropolitan-district-council/leeds,Leeds City Council,Central & Corporate,Commercial Services Trading Services,Supplies and Services,Operational Materials,205,21-Nov-2014,1411-00071,195.00,R,A J H  Pump Supply & Repair Ltd,No 
Http://opendatacommunities.org/id/metropolitan-district-council/leeds,Leeds City Council,Central & Corporate,Commercial Services Trading Services,Supplies and Services,Operational Materials,205,21-Nov-2014,1411-00072,20.00,R,A J H  Pump Supply & Repair Ltd,No 
Http://opendatacommunities.org/id/metropolitan-district-council/leeds,Leeds City Council,Central & Corporate,Commercial Services Trading Services,Supplies and Services,Operational Materials,205,21-Nov-2014,1411-00073,16.80,R,A J H  Pump Supply & Repair Ltd,No 
Http://opendatacommunities.org/id/metropolitan-district-council/leeds,Leeds City Council,Central & Corporate,Commercial Services Trading Services,Supplies and Services,Operational Furniture And Equipment,203,28-Nov-2014,1411-00074,99.00,R,A J H  Pump Supply & Repair Ltd,No 
Http://opendatacommunities.org/id/metropolitan-district-council/leeds,Leeds City Council,Central & Corporate,Commercial Services Trading Services,Supplies and Services,Operational Furniture And Equipment,203,28-Nov-2014,1411-00075,99.00,R,A J H  Pump Supply & Repair Ltd,No 
Http://opendatacommunities.org/id/metropolitan-district-council/leeds,Leeds City Council,Central & Corporate,Commercial Services Trading Services,Supplies and Services,Operational Materials,205,28-Nov-2014,1411-00076,9.00,R,A J H  Pump Supply & Repair Ltd,No 
Http://opendatacommunities.org/id/metropolitan-district-council/leeds,Leeds City Council,Central & Corporate,Commercial Services Trading Services,Supplies and Services,Operational Materials,205,28-Nov-2014,1411-00077,50.68,R,A J H  Pump Supply & Repair Ltd,No 
Http://opendatacommunities.org/id/metropolitan-district-council/leeds,Leeds City Council,Central & Corporate,Commercial Services Trading Services,Supplies and Services,Operational Materials,205,21-Nov-2014,1411-00078,32.50,R,A J H  Pump Supply & Repair Ltd,No 
Http://opendatacommunities.org/id/metropolitan-district-council/leeds,Leeds City Council,Central & Corporate,Commercial Services Trading Services,Supplies and Services,Operational Materials,205,21-Nov-2014,1411-00079,182.80,R,A J H  Pump Supply & Repair Ltd,No 
Http://opendatacommunities.org/id/metropolitan-district-council/leeds,Leeds City Council,Central & Corporate,Commercial Services Trading Services,Supplies and Services,Operational Materials,205,28-Nov-2014,1411-00080,82.89,R,A J H  Pump Supply & Repair Ltd,No 
Http://opendatacommunities.org/id/metropolitan-district-council/leeds,Leeds City Council,Central & Corporate,Commercial Services Trading Services,Supplies and Services,Operational Materials,205,21-Nov-2014,1411-00081,31.65,R,A J H  Pump Supply & Repair Ltd,No 
Http://opendatacommunities.org/id/metropolitan-district-council/leeds,Leeds City Council,Central & Corporate,Commercial Services Trading Services,Supplies and Services,Operational Materials,205,21-Nov-2014,1411-00082,66.77,R,A J H  Pump Supply & Repair Ltd,No 
Http://opendatacommunities.org/id/metropolitan-district-council/leeds,Leeds City Council,Central & Corporate,Commercial Services Trading Services,Supplies and Services,Operational Materials,205,21-Nov-2014,1411-00083,94.77,R,A J H  Pump Supply & Repair Ltd,No 
Http://opendatacommunities.org/id/metropolitan-district-council/leeds,Leeds City Council,Central & Corporate,Commercial Services Trading Services,Supplies and Services,Operational Materials,205,21-Nov-2014,1411-00084,21.00,R,A J H  Pump Supply & Repair Ltd,No 
Http://opendatacommunities.org/id/metropolitan-district-council/leeds,Leeds City Council,Central & Corporate,Commercial Services Trading Services,Supplies and Services,Operational Materials,205,25-Nov-2014,1411-00085,48.85,R,A J H  Pump Supply & Repair Ltd,No 
Http://opendatacommunities.org/id/metropolitan-district-council/leeds,Leeds City Council,Central & Corporate,Commercial Services Trading Services,Supplies and Services,Operational Materials,205,28-Nov-2014,1411-00086,164.85,R,A J H  Pump Supply & Repair Ltd,No 
Http://opendatacommunities.org/id/metropolitan-district-council/leeds,Leeds City Council,Central & Corporate,Commercial Services Trading Services,Supplies and Services,Operational Materials,205,21-Nov-2014,1411-00087,266.96,R,A J H  Pump Supply & Repair Ltd,No 
Http://opendatacommunities.org/id/metropolitan-district-council/leeds,Leeds City Council,Central & Corporate,Commercial Services Trading Services,Supplies and Services,Operational Materials,205,25-Nov-2014,1411-00088,112.45,R,A J H  Pump Supply & Repair Ltd,No 
Http://opendatacommunities.org/id/metropolitan-district-council/leeds,Leeds City Council,Central & Corporate,Commercial Services Trading Services,Supplies and Services,Operational Materials,205,25-Nov-2014,1411-00089,65.33,R,A J H  Pump Supply & Repair Ltd,No 
Http://opendatacommunities.org/id/metropolitan-district-council/leeds,Leeds City Council,Central & Corporate,Commercial Services Trading Services,Supplies and Services,Operational Materials,205,25-Nov-2014,1411-00090,62.56,R,A J H  Pump Supply & Repair Ltd,No 
Http://opendatacommunities.org/id/metropolitan-district-council/leeds,Leeds City Council,Central & Corporate,Commercial Services Trading Services,Supplies and Services,Operational Materials,205,25-Nov-2014,1411-00091,50.95,R,A J H  Pump Supply & Repair Ltd,No 
Http://opendatacommunities.org/id/metropolitan-district-council/leeds,Leeds City Council,Central & Corporate,Commercial Services Trading Services,Supplies and Services,Operational Materials,205,21-Nov-2014,1411-00092,120.24,R,A J H  Pump Supply & Repair Ltd,No 
Http://opendatacommunities.org/id/metropolitan-district-council/leeds,Leeds City Council,Central & Corporate,Commercial Services Trading Services,Supplies and Services,Operational Materials,205,25-Nov-2014,1411-00093,375.69,R,A J H  Pump Supply & Repair Ltd,No 
Http://opendatacommunities.org/id/metropolitan-district-council/leeds,Leeds City Council,City Development,Economic Development,Supplies and Services,Resaleable Materials,204,25-Nov-2014,1411-00094,513.95,R,A J Promotions,No 
Http://opendatacommunities.org/id/metropolitan-district-council/leeds,Leeds City Council,City Development,Libraries  Arts & Heritage,Supplies and Services,Resaleable Materials,204,13-Nov-2014,1411-00095,107.30,R,A J Promotions,No 
Http://opendatacommunities.org/id/metropolitan-district-council/leeds,Leeds City Council,City Development,Libraries  Arts & Heritage,Supplies and Services,Art Galleries Total Stores,003,13-Nov-2014,1411-00096,1482.59,R,A J Promotions,No 
Http://opendatacommunities.org/id/metropolitan-district-council/leeds,Leeds City Council,Strategic Landlord,Housing Management,Transport,Miscellaneous Transport Related Costs,324,07-Nov-2014,1411-00097,42.90,R,REDACTED PERSONAL DATA,No 
Http://opendatacommunities.org/id/metropolitan-district-council/leeds,Leeds City Council,Childrens Services,Learning Skills & Universal,Third Party Payments,Services Rendered By Voluntary Sector,505,28-Nov-2014,1411-00098,440.00,R,A Little Something Extra Ltd,No 
Http://opendatacommunities.org/id/metropolitan-district-council/leeds,Leeds City Council,Childrens Services,Learning Skills & Universal,Third Party Payments,Services Rendered By Voluntary Sector,505,28-Nov-2014,1411-00099,495.00,R,A Little Something Extra Ltd,No 
Http://opendatacommunities.org/id/metropolitan-district-council/leeds,Leeds City Council,Central & Corporate,Customer Services,Supplies and Services,Other Hired And Contracted Services,265,03-Nov-2014,1411-00100,217.45,R,A Mohammed,No 
Http://opendatacommunities.org/id/metropolitan-district-council/leeds,Leeds City Council,Central & Corporate,Customer Services,Supplies and Services,Other Hired And Contracted Services,265,03-Nov-2014,1411-00101,10.00,R,A Namaki,No 
Http://opendatacommunities.org/id/metropolitan-district-council/leeds,Leeds City Council,City Development,Libraries  Arts & Heritage,Supplies and Services,Bought In Professional Services,277,28-Nov-2014,1411-00102,793.00,R,A P Wood,No 
Http://opendatacommunities.org/id/metropolitan-district-council/leeds,Leeds City Council,Environment & Housing,Housing Leeds Service,Capital,Other Costs,7,06-Nov-2014,1411-00103,460.00,C,REDACTED PERSONAL DATA,No 
Http://opendatacommunities.org/id/metropolitan-district-council/leeds,Leeds City Council,City Development,Highways,Supplies and Services,Telephones,213,17-Nov-2014,1411-00104,15.00,R,A Q Limited,No 
Http://opendatacommunities.org/id/metropolitan-district-council/leeds,Leeds City Council,Adult Social Care,Services For Older People Under 65 P/Dis,Transfer Payments,Direct Payments,626,19-Nov-2014,1411-00105,1006.92,R,REDACTED PERSONAL DATA,No 
Http://opendatacommunities.org/id/metropolitan-district-council/leeds,Leeds City Council,Central & Corporate,Customer Services,Supplies and Services,Other Hired And Contracted Services,265,03-Nov-2014,1411-00106,234.50,R,A Sheikholeslami,No 
Http://opendatacommunities.org/id/metropolitan-district-council/leeds,Leeds City Council,Central & Corporate,Customer Services,Supplies and Services,Other Hired And Contracted Services,265,03-Nov-2014,1411-00107,55.68,R,A Sheikholeslami,No 
Http://opendatacommunities.org/id/metropolitan-district-council/leeds,Leeds City Council,Environment & Housing,Streetscene Environmental Services,Employees,Training & Development,70,06-Nov-2014,1411-00108,100.10,R,REDACTED PERSONAL DATA,No 
Http://opendatacommunities.org/id/metropolitan-district-council/leeds,Leeds City Council,Environment & Housing,Streetscene Environmental Services,Employees,Training & Development,70,06-Nov-2014,1411-00109,73.70,R,REDACTED PERSONAL DATA,No 
Http://opendatacommunities.org/id/metropolitan-district-council/leeds,Leeds City Council,Environment & Housing,Streetscene Environmental Services,Supplies and Services,Other Hired And Contracted Services,265,03-Nov-2014,1411-00110,183.70,R,REDACTED PERSONAL DATA,No 
Http://opendatacommunities.org/id/metropolitan-district-council/leeds,Leeds City Council,Environment & Housing,Streetscene Environmental Services,Supplies and Services,Other Hired And Contracted Services,265,05-Nov-2014,1411-00111,546.15,R,REDACTED PERSONAL DATA,No 
Http://opendatacommunities.org/id/metropolitan-district-council/leeds,Leeds City Council,Adult Social Care,Social Services Support Services  ,Supplies and Services,Computer Software & Equipment,214,20-Oct-2014,1411-00112,280.00,R,A V 2000 Ltd,Yes
Http://opendatacommunities.org/id/metropolitan-district-council/leeds,Leeds City Council,Adult Social Care,Social Services Support Services  ,Supplies and Services,Computer Software & Equipment,214,27-Oct-2014,1411-00113,-160.00,R,A V 2000 Ltd,Yes
Http://opendatacommunities.org/id/metropolitan-district-council/leeds,Leeds City Council,Adult Social Care,Services For Older People Under 65 P/Dis,Transfer Payments,Direct Payments,626,19-Nov-2014,1411-00114,1384.16,R,REDACTED PERSONAL DATA,No 
Http://opendatacommunities.org/id/metropolitan-district-council/leeds,Leeds City Council,Central & Corporate,Public Health,Third Party Payments,Public Health Commissioned Services,526,27-Nov-2014,1411-00115,32.48,R,Aaa Healthcare Ltd,No 
Http://opendatacommunities.org/id/metropolitan-district-council/leeds,Leeds City Council,Adult Social Care,Services For Older People Under 65 P/Dis,Transfer Payments,Personalised Budgets,627,19-Nov-2014,1411-00116,822.40,R,REDACTED PERSONAL DATA,No 
Http://opendatacommunities.org/id/metropolitan-district-council/leeds,Leeds City Council,Central & Corporate,Financial Management,Employees,Training & Development,70,24-Nov-2014,1411-00117,252.00,R,Aat,No 
Http://opendatacommunities.org/id/metropolitan-district-council/leeds,Leeds City Council,Childrens Services,Safeguarding Targeted & Specialist,Support Services,Legal Disbursements,411,13-Nov-2014,1411-00118,14.51,R,Abacus Express Limited,No 
Http://opendatacommunities.org/id/metropolitan-district-council/leeds,Leeds City Council,Childrens Services,Safeguarding Targeted & Specialist,Support Services,Legal Disbursements,411,11-Nov-2014,1411-00119,14.51,R,Abacus Express Limited,No 
Http://opendatacommunities.org/id/metropolitan-district-council/leeds,Leeds City Council,Childrens Services,Safeguarding Targeted & Specialist,Support Services,Legal Disbursements,411,05-Nov-2014,1411-00120,14.51,R,Abacus Express Limited,No 
Http://opendatacommunities.org/id/metropolitan-district-council/leeds,Leeds City Council,Childrens Services,Safeguarding Targeted & Specialist,Support Services,Legal Disbursements,411,19-Nov-2014,1411-00121,18.81,R,Abacus Express Limited,No 
Http://opendatacommunities.org/id/metropolitan-district-council/leeds,Leeds City Council,Childrens Services,Safeguarding Targeted & Specialist,Support Services,Legal Disbursements,411,19-Nov-2014,1411-00122,26.88,R,Abacus Express Limited,No 
Http://opendatacommunities.org/id/metropolitan-district-council/leeds,Leeds City Council,Childrens Services,Safeguarding Targeted & Specialist,Support Services,Legal Disbursements,411,19-Nov-2014,1411-00123,39.54,R,Abacus Express Limited,No 
Http://opendatacommunities.org/id/metropolitan-district-council/leeds,Leeds City Council,Childrens Services,Safeguarding Targeted & Specialist,Support Services,Legal Disbursements,411,10-Nov-2014,1411-00124,31.02,R,Abacus Express Limited,No 
Http://opendatacommunities.org/id/metropolitan-district-council/leeds,Leeds City Council,Childrens Services,Safeguarding Targeted & Specialist,Support Services,Legal Disbursements,411,05-Nov-2014,1411-00125,31.02,R,Abacus Express Limited,No 
Http://opendatacommunities.org/id/metropolitan-district-council/leeds,Leeds City Council,Environment & Housing,Parks & Countryside,Support Services,Legal Disbursements,411,13-Nov-2014,1411-00126,14.51,R,Abacus Express Limited,No 
Http://opendatacommunities.org/id/metropolitan-district-council/leeds,Leeds City Council,Strategic Landlord,Strategic,Support Services,Legal Disbursements,411,28-Nov-2014,1411-00127,16.66,R,Abacus Express Limited,No 
Http://opendatacommunities.org/id/metropolitan-district-council/leeds,Leeds City Council,Central & Corporate,Leeds Shared Services,Supplies and Services,Computer Software & Equipment,214,05-Nov-2014,1411-00128,3228.00,R,Abacus Software Ltd,No 
Http://opendatacommunities.org/id/metropolitan-district-council/leeds,Leeds City Council,Adult Social Care,Services For Older People - 65 And Over,Third Party Payments,Nursing Care Dementia,574,19-Nov-2014,1411-00129,2295.88,R,Abbendon Nursing Home,No 
Http://opendatacommunities.org/id/metropolitan-district-council/leeds,Leeds City Council,City Development,Libraries  Arts & Heritage  ,Supplies and Services,Food & Drink,231,21-Oct-2014,1411-00130,65.00,R,Abbey House Museum Caf,Yes
Http://opendatacommunities.org/id/metropolitan-district-council/leeds,Leeds City Council,City Development,Libraries  Arts & Heritage  ,Supplies and Services,Food & Drink,231,28-Oct-2014,1411-00131,40.00,R,Abbey House Museum Caf,Yes
Http://opendatacommunities.org/id/metropolitan-district-council/leeds,Leeds City Council,Adult Social Care,Services For Older People - 65 And Over,Third Party Payments,Residential Care Dementia,571,19-Nov-2014,1411-00132,1131.84,R,Abbey Lea Residential Care Home,No 
Http://opendatacommunities.org/id/metropolitan-district-council/leeds,Leeds City Council as Accountable Body,Social Services Pooled Budgets,Jcs For People With Learning Disabilitie,Transfer Payments,Personal Budgets,627,19-Nov-2014,1411-00133,379.28,R,REDACTED PERSONAL DATA,No 
Http://opendatacommunities.org/id/metropolitan-district-council/leeds,Leeds City Council as Accountable Body,Social Services Pooled Budgets,Jcs For People With Learning Disabilitie,Transfer Payments,Personal Budgets,627,25-Nov-2014,1411-00134,4839.24,R,REDACTED PERSONAL DATA,No 
Http://opendatacommunities.org/id/metropolitan-district-council/leeds,Leeds City Council,City Development,Employment & Skills,Supplies and Services,Other Hired And Contracted Services,265,21-Nov-2014,1411-00135,248.19,R,REDACTED PERSONAL DATA,No 
Http://opendatacommunities.org/id/metropolitan-district-council/leeds,Leeds City Council,City Development,Employment & Skills,Supplies and Services,Other Hired And Contracted Services,265,28-Nov-2014,1411-00136,248.19,R,REDACTED PERSONAL DATA,No 
Http://opendatacommunities.org/id/metropolitan-district-council/leeds,Leeds City Council,City Development,Employment & Skills,Supplies and Services,Other Hired And Contracted Services,265,07-Nov-2014,1411-00137,248.19,R,REDACTED PERSONAL DATA,No 
Http://opendatacommunities.org/id/metropolitan-district-council/leeds,Leeds City Council,City Development,Employment & Skills,Supplies and Services,Other Hired And Contracted Services,265,14-Nov-2014,1411-00138,248.19,R,REDACTED PERSONAL DATA,No 
Http://opendatacommunities.org/id/metropolitan-district-council/leeds,Leeds City Council,Central & Corporate,Customer Services,Supplies and Services,Other Hired And Contracted Services,265,03-Nov-2014,1411-00139,196.75,R,Abdur Rahman Khan,No 
Http://opendatacommunities.org/id/metropolitan-district-council/leeds,Leeds City Council,Adult Social Care,Services For Older People - 65 And Over,Third Party Payments,Nursing Home,570,19-Nov-2014,1411-00140,14264.08,R,Aberford Hall,No 
Http://opendatacommunities.org/id/metropolitan-district-council/leeds,Leeds City Council,Adult Social Care,Services For Older People - 65 And Over,Third Party Payments,Nursing Care Dementia,574,19-Nov-2014,1411-00141,1836.00,R,Aberford Hall,No 
Http://opendatacommunities.org/id/metropolitan-district-council/leeds,Leeds City Council,Adult Social Care,Services For Older People - 65 And Over,Third Party Payments,Residential,580,19-Nov-2014,1411-00142,8836.32,R,Aberford Hall,No 
Http://opendatacommunities.org/id/metropolitan-district-council/leeds,Leeds City Council,Central & Corporate,Commercial Services Trading Services,Supplies and Services,Operational Materials,205,20-Nov-2014,1411-00143,2700.00,R,Abi Garage Doors Ltd,No 
Http://opendatacommunities.org/id/metropolitan-district-council/leeds,Leeds City Council,Central & Corporate,Commercial Services Trading Services,Supplies and Services,Operational Materials,205,19-Nov-2014,1411-00144,20.00,R,Abi Garage Doors Ltd,No 
Http://opendatacommunities.org/id/metropolitan-district-council/leeds,Leeds City Council as Accountable Body,Social Services Pooled Budgets,Jcs For People With Learning Disabilitie,Transfer Payments,Personal Budgets,627,19-Nov-2014,1411-00145,1269.12,R,REDACTED PERSONAL DATA,No 
Http://opendatacommunities.org/id/metropolitan-district-council/leeds,Leeds City Council,Environment & Housing,Streetscene Environmental Services,Income,Penalties  Fines & Car Parking Charges,934,20-Nov-2014,1411-00146,30.00,R,REDACTED PERSONAL DATA,No 
Http://opendatacommunities.org/id/metropolitan-district-council/leeds,Leeds City Council,Childrens Services,Safeguarding Targeted & Specialist,Employees,Agency Staff,8,21-Nov-2014,1411-00147,1191.04,R,Academic Appointments Ltd,No 
Http://opendatacommunities.org/id/metropolitan-district-council/leeds,Leeds City Council,Childrens Services,Safeguarding Targeted & Specialist,Employees,Agency Staff,8,07-Nov-2014,1411-00148,2766.54,R,Academic Appointments Ltd,No 
Http://opendatacommunities.org/id/metropolitan-district-council/leeds,Leeds City Council,Childrens Services,Safeguarding Targeted & Specialist,Employees,Agency Staff,8,14-Nov-2014,1411-00149,3460.42,R,Academic Appointments Ltd,No 
Http://opendatacommunities.org/id/metropolitan-district-council/leeds,Leeds City Council,Childrens Services,Safeguarding Targeted & Specialist,Employees,Agency Staff,8,21-Nov-2014,1411-00150,2579.54,R,Academic Appointments Ltd,No 
Http://opendatacommunities.org/id/metropolitan-district-council/leeds,Leeds City Council,Central & Corporate,Commercial Services Trading Services,Supplies and Services,Operational Materials,205,07-Nov-2014,1411-00151,16.83,R,Access Locksmiths (Leeds) Limited,No 
Http://opendatacommunities.org/id/metropolitan-district-council/leeds,Leeds City Council,Environment & Housing,Hra,Premises,General Maintenance,104,03-Nov-2014,1411-00152,141.15,R,Access Locksmiths (Leeds) Limited,No 
Http://opendatacommunities.org/id/metropolitan-district-council/leeds,Leeds City Council,Strategic Landlord,Housing Management,Supplies and Services,Grants To Voluntary Organisations,293,28-Nov-2014,1411-00153,5.00,R,Access Locksmiths (Leeds) Limited,No 
Http://opendatacommunities.org/id/metropolitan-district-council/leeds,Leeds City Council,Strategic Landlord,Strategic,Supplies and Services,Security Services(Non Infrastructure),262,28-Nov-2014,1411-00154,45.00,R,Access Locksmiths (Leeds) Limited,No 
Http://opendatacommunities.org/id/metropolitan-district-council/leeds,Leeds City Council,Central & Corporate,Commercial Services Trading Services,Supplies and Services,Operational Materials,205,06-Nov-2014,1411-00155,33.80,R,Access Opening Systems Limited,No 
Http://opendatacommunities.org/id/metropolitan-district-council/leeds,Leeds City Council,Central & Corporate,Commercial Services Trading Services,Supplies and Services,Operational Materials,205,06-Nov-2014,1411-00156,40.00,R,Access Opening Systems Limited,No 
Http://opendatacommunities.org/id/metropolitan-district-council/leeds,Leeds City Council,Central & Corporate,Commercial Services Trading Services,Supplies and Services,Operational Materials,205,06-Nov-2014,1411-00157,160.50,R,Access Opening Systems Limited,No 
Http://opendatacommunities.org/id/metropolitan-district-council/leeds,Leeds City Council,Central & Corporate,Commercial Services Trading Services,Supplies and Services,Operational Materials,205,06-Nov-2014,1411-00158,37.50,R,Access Opening Systems Limited,No 
Http://opendatacommunities.org/id/metropolitan-district-council/leeds,Leeds City Council,Central & Corporate,Commercial Services Trading Services,Supplies and Services,Other Hired And Contracted Services,265,26-Nov-2014,1411-00159,90.00,R,Access Opening Systems Limited,No 
Http://opendatacommunities.org/id/metropolitan-district-council/leeds,Leeds City Council,Environment & Housing,Environmental Action (West North West),Supplies and Services,Operational Furniture And Equipment,203,21-Nov-2014,1411-00160,245.00,R,Accesscctv,No 
Http://opendatacommunities.org/id/metropolitan-district-council/leeds,Leeds City Council,Central & Corporate,Executive Support,Supplies and Services,Office Furniture & Equipment,201,13-Nov-2014,1411-00161,151.65,R,Acco Brands Service Division,No 
Http://opendatacommunities.org/id/metropolitan-district-council/leeds,Leeds City Council,Environment & Housing,Parks & Countryside,Supplies and Services,Operational Materials,205,26-Nov-2014,1411-00162,5482.50,R,Ace Engineers (Morley) Ltd,No 
Http://opendatacommunities.org/id/metropolitan-district-council/leeds,Leeds City Council,Environment & Housing,Parks & Countryside,Supplies and Services,Operational Materials,205,28-Nov-2014,1411-00163,1680.00,R,Ace Engineers (Morley) Ltd,No 
Http://opendatacommunities.org/id/metropolitan-district-council/leeds,Leeds City Council,Central & Corporate,Commercial Services Trading Services,Supplies and Services,Operational Materials,205,26-Nov-2014,1411-00164,1505.00,R,Acme Facilities Group Ltd,No 
Http://opendatacommunities.org/id/metropolitan-district-council/leeds,Leeds City Council,Central & Corporate,Commercial Services Trading Services,Supplies and Services,Operational Materials,205,13-Nov-2014,1411-00165,1750.00,R,Acme Facilities Group Ltd,No 
Http://opendatacommunities.org/id/metropolitan-district-council/leeds,Leeds City Council,Central & Corporate,Commercial Services Trading Services,Supplies and Services,Operational Materials,205,13-Nov-2014,1411-00166,978.00,R,Acme Facilities Group Ltd,No 
Http://opendatacommunities.org/id/metropolitan-district-council/leeds,Leeds City Council,Central & Corporate,Commercial Services Trading Services,Supplies and Services,Operational Materials,205,13-Nov-2014,1411-00167,1750.00,R,Acme Facilities Group Ltd,No 
Http://opendatacommunities.org/id/metropolitan-district-council/leeds,Leeds City Council,Central & Corporate,Commercial Services Trading Services,Supplies and Services,Operational Materials,205,13-Nov-2014,1411-00168,1750.00,R,Acme Facilities Group Ltd,No 
Http://opendatacommunities.org/id/metropolitan-district-council/leeds,Leeds City Council,Central & Corporate,Commercial Services Trading Services,Supplies and Services,Operational Materials,205,13-Nov-2014,1411-00169,1505.00,R,Acme Facilities Group Ltd,No 
Http://opendatacommunities.org/id/metropolitan-district-council/leeds,Leeds City Council,Central & Corporate,Commercial Services Trading Services,Supplies and Services,Operational Materials,205,13-Nov-2014,1411-00170,999.00,R,Acme Facilities Group Ltd,No 
Http://opendatacommunities.org/id/metropolitan-district-council/leeds,Leeds City Council,Central & Corporate,Commercial Services Trading Services,Supplies and Services,Operational Materials,205,13-Nov-2014,1411-00171,999.00,R,Acme Facilities Group Ltd,No 
Http://opendatacommunities.org/id/metropolitan-district-council/leeds,Leeds City Council,Central & Corporate,Commercial Services Trading Services,Supplies and Services,Operational Materials,205,13-Nov-2014,1411-00172,999.00,R,Acme Facilities Group Ltd,No 
Http://opendatacommunities.org/id/metropolitan-district-council/leeds,Leeds City Council,Central & Corporate,Commercial Services Trading Services,Supplies and Services,Operational Materials,205,13-Nov-2014,1411-00173,999.00,R,Acme Facilities Group Ltd,No 
Http://opendatacommunities.org/id/metropolitan-district-council/leeds,Leeds City Council,Central & Corporate,Commercial Services Trading Services,Supplies and Services,Operational Materials,205,13-Nov-2014,1411-00174,999.00,R,Acme Facilities Group Ltd,No 
Http://opendatacommunities.org/id/metropolitan-district-council/leeds,Leeds City Council,Central & Corporate,Commercial Services Trading Services,Supplies and Services,Operational Materials,205,13-Nov-2014,1411-00175,1465.00,R,Acme Facilities Group Ltd,No 
Http://opendatacommunities.org/id/metropolitan-district-council/leeds,Leeds City Council,Central & Corporate,Commercial Services Trading Services,Supplies and Services,Operational Materials,205,13-Nov-2014,1411-00176,999.00,R,Acme Facilities Group Ltd,No 
Http://opendatacommunities.org/id/metropolitan-district-council/leeds,Leeds City Council,Central & Corporate,Commercial Services Trading Services,Supplies and Services,Operational Materials,205,13-Nov-2014,1411-00177,999.00,R,Acme Facilities Group Ltd,No 
Http://opendatacommunities.org/id/metropolitan-district-council/leeds,Leeds City Council,Central & Corporate,Commercial Services Trading Services,Supplies and Services,Operational Materials,205,13-Nov-2014,1411-00178,999.00,R,Acme Facilities Group Ltd,No 
Http://opendatacommunities.org/id/metropolitan-district-council/leeds,Leeds City Council,Central & Corporate,Commercial Services Trading Services,Supplies and Services,Operational Materials,205,13-Nov-2014,1411-00179,999.00,R,Acme Facilities Group Ltd,No 
Http://opendatacommunities.org/id/metropolitan-district-council/leeds,Leeds City Council,Central & Corporate,Commercial Services Trading Services,Supplies and Services,Operational Materials,205,13-Nov-2014,1411-00180,999.00,R,Acme Facilities Group Ltd,No 
Http://opendatacommunities.org/id/metropolitan-district-council/leeds,Leeds City Council,Childrens Services,Safeguarding Targeted & Specialist,Third Party Payments,Independent Fostering Agencies,509,28-Nov-2014,1411-00181,5181.34,R,Acorn House (Fostering Services) Ltd,No 
Http://opendatacommunities.org/id/metropolitan-district-council/leeds,Leeds City Council,City Development,Libraries  Arts & Heritage,Supplies and Services,Other Hired And Contracted Services,265,28-Nov-2014,1411-00182,650.00,R,Acorn Scaffolding (Yorkshire) Ltd,No 
Http://opendatacommunities.org/id/metropolitan-district-council/leeds,Leeds City Council,City Development,Libraries  Arts & Heritage,Supplies and Services,Operational Furniture And Equipment,203,25-Nov-2014,1411-00183,3000.00,R,Acorn Scaffolding (Yorkshire) Ltd,No 
Http://opendatacommunities.org/id/metropolitan-district-council/leeds,Leeds City Council,Adult Social Care,Services For Adults Under 65 Mental/Dis,Third Party Payments,Residential,580,19-Nov-2014,1411-00184,-353.79,R,Acre Green,No 
Http://opendatacommunities.org/id/metropolitan-district-council/leeds,Leeds City Council,Adult Social Care,Services For Older People - 65 And Over,Third Party Payments,Nursing Home,570,19-Nov-2014,1411-00185,8745.56,R,Acre Green,No 
Http://opendatacommunities.org/id/metropolitan-district-council/leeds,Leeds City Council,Adult Social Care,Services For Older People - 65 And Over,Third Party Payments,Residential Care Dementia,571,19-Nov-2014,1411-00186,1336.12,R,Acre Green,No 
Http://opendatacommunities.org/id/metropolitan-district-council/leeds,Leeds City Council,Adult Social Care,Services For Older People - 65 And Over,Third Party Payments,Nursing Care Dementia,574,19-Nov-2014,1411-00187,1277.12,R,Acre Green,No 
Http://opendatacommunities.org/id/metropolitan-district-council/leeds,Leeds City Council,Adult Social Care,Services For Older People - 65 And Over,Third Party Payments,Residential,580,19-Nov-2014,1411-00188,27192.87,R,Acre Green,No 
Http://opendatacommunities.org/id/metropolitan-district-council/leeds,Leeds City Council,Adult Social Care,Services For Adults Under 65 Mental/Dis,Third Party Payments,Services Provided By Other NHS Bodies,522,20-Nov-2014,1411-00189,300.00,R,Action First Ipeople Ltd,No 
Http://opendatacommunities.org/id/metropolitan-district-council/leeds,Leeds City Council,Adult Social Care,Services For Adults Under 65 Mental/Dis,Third Party Payments,Services Provided By Other NHS Bodies,522,20-Nov-2014,1411-00190,300.00,R,Action First Ipeople Ltd,No 
Http://opendatacommunities.org/id/metropolitan-district-council/leeds,Leeds City Council,Adult Social Care,Services For Adults Under 65 Mental/Dis,Third Party Payments,Services Provided By Other NHS Bodies,522,20-Nov-2014,1411-00191,300.00,R,Action First Ipeople Ltd,No 
Http://opendatacommunities.org/id/metropolitan-district-council/leeds,Leeds City Council,Adult Social Care,Services For Adults Under 65 Mental/Dis,Third Party Payments,Services Provided By Other NHS Bodies,522,20-Nov-2014,1411-00192,300.00,R,Action First Ipeople Ltd,No 
Http://opendatacommunities.org/id/metropolitan-district-council/leeds,Leeds City Council,Adult Social Care,Services For Adults Under 65 Mental/Dis,Third Party Payments,Services Provided By Other NHS Bodies,522,20-Nov-2014,1411-00193,300.00,R,Action First Ipeople Ltd,No 
Http://opendatacommunities.org/id/metropolitan-district-council/leeds,Leeds City Council,Adult Social Care,Services For Adults Under 65 Mental/Dis,Third Party Payments,Payments To Voluntary Organisations,561,07-Nov-2014,1411-00194,129338.00,R,Action For Blind People,No 
Http://opendatacommunities.org/id/metropolitan-district-council/leeds,Leeds City Council,Childrens Services,Safeguarding Targeted & Specialist,Third Party Payments,Interagency Adoptions,559,19-Nov-2014,1411-00195,750.00,R,Action For Children,No 
Http://opendatacommunities.org/id/metropolitan-district-council/leeds,Leeds City Council,City Development,Libraries  Arts & Heritage,Supplies and Services,Clothing & Uniforms,241,04-Nov-2014,1411-00196,582.16,R,Activ8 Sporting Solutions Ltd,No 
Http://opendatacommunities.org/id/metropolitan-district-council/leeds,Leeds City Council,City Development,Libraries  Arts & Heritage,Supplies and Services,Clothing & Uniforms,241,04-Nov-2014,1411-00197,1168.17,R,Activ8 Sporting Solutions Ltd,No 
Http://opendatacommunities.org/id/metropolitan-district-council/leeds,Leeds City Council,Central & Corporate,Executive Support,Supplies and Services,'Well Being' Large Grants Projects,230,05-Nov-2014,1411-00198,180.00,R,Active Hire (Leeds) Ltd,No 
Http://opendatacommunities.org/id/metropolitan-district-council/leeds,Leeds City Council,Childrens Services,Safeguarding Targeted & Specialist,Third Party Payments,Placement Support,550,05-Nov-2014,1411-00199,219.00,R,Active Kids Day Nursery,No 
Http://opendatacommunities.org/id/metropolitan-district-council/leeds,Leeds City Council,Environment & Housing,Parks & Countryside,Supplies and Services,Resaleable Materials,204,28-Nov-2014,1411-00200,155.00,R,Acushnet Europe Limited,No 
Http://opendatacommunities.org/id/metropolitan-district-council/leeds,Leeds City Council,Environment & Housing,Parks & Countryside,Supplies and Services,Resaleable Materials,204,27-Nov-2014,1411-00201,18.80,R,Acushnet Europe Limited,No 
Http://opendatacommunities.org/id/metropolitan-district-council/leeds,Leeds City Council,Environment & Housing,Parks & Countryside,Supplies and Services,Resaleable Materials,204,12-Nov-2014,1411-00202,98.00,R,Acushnet Europe Limited,No 
Http://opendatacommunities.org/id/metropolitan-district-council/leeds,Leeds City Council,Environment & Housing,Parks & Countryside,Supplies and Services,Resaleable Materials,204,13-Nov-2014,1411-00203,2101.66,R,Acushnet Europe Limited,No 
Http://opendatacommunities.org/id/metropolitan-district-council/leeds,Leeds City Council,Environment & Housing,Parks & Countryside,Supplies and Services,Bought In Professional Services,277,17-Nov-2014,1411-00204,3461.18,R,REDACTED COMMERCIAL CONFIDENTIALITY,No 
Http://opendatacommunities.org/id/metropolitan-district-council/leeds,Leeds City Council,Central & Corporate,Support And Facilities General Fund,Supplies and Services,Other Hired And Contracted Services,265,26-Nov-2014,1411-00205,462.50,R,Ad3 Envelope Printers Limited,No 
Http://opendatacommunities.org/id/metropolitan-district-council/leeds,Leeds City Council,Central & Corporate,Support And Facilities General Fund,Supplies and Services,Other Hired And Contracted Services,265,26-Nov-2014,1411-00206,60.27,R,Ad3 Envelope Printers Limited,No 
Http://opendatacommunities.org/id/metropolitan-district-council/leeds,Leeds City Council,Environment & Housing,Statutory Housing,Supplies and Services,Other Hired And Contracted Services,265,05-Nov-2014,1411-00207,930.00,R,Ada Glossop Ltd,No 
Http://opendatacommunities.org/id/metropolitan-district-council/leeds,Leeds City Council,Adult Social Care,Services For Older People Under 65 P/Dis,Transfer Payments,Personalised Budgets,627,19-Nov-2014,1411-00208,748.00,R,REDACTED PERSONAL DATA,No 
Http://opendatacommunities.org/id/metropolitan-district-council/leeds,Leeds City Council,City Development,Libraries  Arts & Heritage,Supplies and Services,Other Hired And Contracted Services,265,14-Nov-2014,1411-00209,2500.00,R,Adam Clarke,No 
Http://opendatacommunities.org/id/metropolitan-district-council/leeds,Leeds City Council as Accountable Body,Social Services Pooled Budgets,Jcs For People With Learning Disabilitie,Transfer Payments,Personal Budgets,627,19-Nov-2014,1411-00210,1750.52,R,REDACTED PERSONAL DATA,No 
Http://opendatacommunities.org/id/metropolitan-district-council/leeds,Leeds City Council,Adult Social Care,Services For Older People Under 65 P/Dis,Transfer Payments,Personalised Budgets,627,19-Nov-2014,1411-00211,576.00,R,REDACTED PERSONAL DATA,No 
Http://opendatacommunities.org/id/metropolitan-district-council/leeds,Leeds City Council,Adult Social Care,Services For Adults Under 65 Mental/Dis,Transfer Payments,Direct Payments,626,19-Nov-2014,1411-00212,444.40,R,REDACTED PERSONAL DATA,No 
Http://opendatacommunities.org/id/metropolitan-district-council/leeds,Leeds City Council as Accountable Body,Social Services Pooled Budgets,Jcs For People With Learning Disabilitie,Transfer Payments,Direct Payments,626,19-Nov-2014,1411-00213,859.60,R,REDACTED PERSONAL DATA,No 
Http://opendatacommunities.org/id/metropolitan-district-council/leeds,Leeds City Council,Childrens Services,Partnership Development & Leadership,Supplies and Services,Conference Meetings,253,07-Nov-2014,1411-00214,450.00,R,Adass,No 
Http://opendatacommunities.org/id/metropolitan-district-council/leeds,Leeds City Council,Strategic Accounts,Miscellaneous,Supplies and Services,Other Hired And Contracted Services,265,07-Nov-2014,1411-00215,520.80,R,Addleshaw Goddard,No 
Http://opendatacommunities.org/id/metropolitan-district-council/leeds,Leeds City Council,Environment & Housing,Parks & Countryside,Supplies and Services,Other Hired And Contracted Services,265,04-Nov-2014,1411-00216,7182.00,R,Addlestone Moumouris Orme Sixsmith,No 
Http://opendatacommunities.org/id/metropolitan-district-council/leeds,Leeds City Council,Adult Social Care,Services For Older People Under 65 P/Dis,Transfer Payments,Personalised Budgets,627,19-Nov-2014,1411-00217,1866.32,R,REDACTED PERSONAL DATA,No 
Http://opendatacommunities.org/id/metropolitan-district-council/leeds,Leeds City Council,Adult Social Care,Services For Older People - 65 And Over,Third Party Payments,Nursing Home,570,19-Nov-2014,1411-00218,1088.92,R,Aden House,No 
Http://opendatacommunities.org/id/metropolitan-district-council/leeds,Leeds City Council,Adult Social Care,Services For Older People - 65 And Over,Third Party Payments,Residential Care Dementia,571,19-Nov-2014,1411-00219,1350.76,R,Aden House,No 
Http://opendatacommunities.org/id/metropolitan-district-council/leeds,Leeds City Council,Central & Corporate,Commercial Services Trading Services,Supplies and Services,Operational Materials,205,28-Nov-2014,1411-00220,70.91,R,Adi Global,No 
Http://opendatacommunities.org/id/metropolitan-district-council/leeds,Leeds City Council,Central & Corporate,Commercial Services Trading Services,Supplies and Services,Operational Materials,205,28-Nov-2014,1411-00221,35.93,R,Adi Global,No 
Http://opendatacommunities.org/id/metropolitan-district-council/leeds,Leeds City Council,Central & Corporate,Commercial Services Trading Services,Supplies and Services,Operational Materials,205,28-Nov-2014,1411-00222,70.33,R,Adi Global,No 
Http://opendatacommunities.org/id/metropolitan-district-council/leeds,Leeds City Council,Central & Corporate,Commercial Services Trading Services,Supplies and Services,Operational Materials,205,28-Nov-2014,1411-00223,52.72,R,Adi Global,No 
Http://opendatacommunities.org/id/metropolitan-district-council/leeds,Leeds City Council,Central & Corporate,Commercial Services Trading Services,Supplies and Services,Operational Materials,205,26-Nov-2014,1411-00224,45.20,R,Adi Global,No 
Http://opendatacommunities.org/id/metropolitan-district-council/leeds,Leeds City Council,Central & Corporate,Commercial Services Trading Services,Supplies and Services,Operational Materials,205,26-Nov-2014,1411-00225,40.90,R,Adi Global,No 
Http://opendatacommunities.org/id/metropolitan-district-council/leeds,Leeds City Council,Central & Corporate,Commercial Services Trading Services,Supplies and Services,Operational Materials,205,26-Nov-2014,1411-00226,43.19,R,Adi Global,No 
Http://opendatacommunities.org/id/metropolitan-district-council/leeds,Leeds City Council,Central & Corporate,Commercial Services Trading Services,Supplies and Services,Operational Materials,205,21-Nov-2014,1411-00227,124.06,R,Adi Global,No 
Http://opendatacommunities.org/id/metropolitan-district-council/leeds,Leeds City Council,Central & Corporate,Commercial Services Trading Services,Supplies and Services,Operational Materials,205,19-Nov-2014,1411-00228,9.05,R,Adi Global,No 
Http://opendatacommunities.org/id/metropolitan-district-council/leeds,Leeds City Council,Central & Corporate,Commercial Services Trading Services,Supplies and Services,Operational Materials,205,19-Nov-2014,1411-00229,5.86,R,Adi Global,No 
Http://opendatacommunities.org/id/metropolitan-district-council/leeds,Leeds City Council,Central & Corporate,Commercial Services Trading Services,Supplies and Services,Operational Materials,205,19-Nov-2014,1411-00230,19.38,R,Adi Global,No 
Http://opendatacommunities.org/id/metropolitan-district-council/leeds,Leeds City Council,Central & Corporate,Commercial Services Trading Services,Supplies and Services,Operational Materials,205,12-Nov-2014,1411-00231,9.05,R,Adi Global,No 
Http://opendatacommunities.org/id/metropolitan-district-council/leeds,Leeds City Council,Central & Corporate,Commercial Services Trading Services,Supplies and Services,Operational Materials,205,05-Nov-2014,1411-00232,55.75,R,Adi Global,No 
Http://opendatacommunities.org/id/metropolitan-district-council/leeds,Leeds City Council,Environment & Housing,Community Safety  ,Supplies and Services,Other Hired And Contracted Services,265,17-Oct-2014,1411-00233,17.07,R,Adi-Gardiner Ltd,Yes
Http://opendatacommunities.org/id/metropolitan-district-council/leeds,Leeds City Council,Central & Corporate,Commercial Services Trading Services,Supplies and Services,Other Hired And Contracted Services,265,26-Nov-2014,1411-00234,195.00,R,Admas Limited,No 
Http://opendatacommunities.org/id/metropolitan-district-council/leeds,Leeds City Council,Childrens Services,Safeguarding Targeted & Specialist,Third Party Payments,Independent Fostering Agencies,509,07-Nov-2014,1411-00235,396.00,R,Adolescent And Childrens Trust,No 
Http://opendatacommunities.org/id/metropolitan-district-council/leeds,Leeds City Council,Childrens Services,Safeguarding Targeted & Specialist,Third Party Payments,Independent Fostering Agencies,509,07-Nov-2014,1411-00236,5400.00,R,Adolescent And Childrens Trust,No 
Http://opendatacommunities.org/id/metropolitan-district-council/leeds,Leeds City Council,Childrens Services,Safeguarding Targeted & Specialist,Third Party Payments,Independent Fostering Agencies,509,07-Nov-2014,1411-00237,204.00,R,Adolescent And Childrens Trust,No 
Http://opendatacommunities.org/id/metropolitan-district-council/leeds,Leeds City Council,Childrens Services,Safeguarding Targeted & Specialist,Third Party Payments,Independent Fostering Agencies,509,07-Nov-2014,1411-00238,3015.00,R,Adolescent And Childrens Trust,No 
Http://opendatacommunities.org/id/metropolitan-district-council/leeds,Leeds City Council,Childrens Services,Safeguarding Targeted & Specialist,Third Party Payments,Interagency Adoptions,559,13-Nov-2014,1411-00239,538.88,R,Adoption Uk,No 
Http://opendatacommunities.org/id/metropolitan-district-council/leeds,Leeds City Council,Adult Social Care,Services For Older People Under 65 P/Dis,Transfer Payments,Personalised Budgets,627,19-Nov-2014,1411-00240,312.00,R,REDACTED PERSONAL DATA,No 
Http://opendatacommunities.org/id/metropolitan-district-council/leeds,Leeds City Council,Central & Corporate,Commercial Services Trading Services,Premises,Maintenance Of Buildings,101,20-Nov-2014,1411-00241,170.00,R,Adt Fire And Security Plc,No 
Http://opendatacommunities.org/id/metropolitan-district-council/leeds,Leeds City Council,Central & Corporate,Commercial Services Trading Services,Premises,Maintenance Of Buildings,101,20-Nov-2014,1411-00242,130.00,R,Adt Fire And Security Plc,No 
Http://opendatacommunities.org/id/metropolitan-district-council/leeds,Leeds City Council,Central & Corporate,Commercial Services Trading Services,Premises,Maintenance Of Buildings,101,14-Nov-2014,1411-00243,365.00,R,Adt Fire And Security Plc,No 
Http://opendatacommunities.org/id/metropolitan-district-council/leeds,Leeds City Council,Central & Corporate,Commercial Services Trading Services,Premises,Maintenance Of Buildings,101,11-Nov-2014,1411-00244,138.57,R,Adt Fire And Security Plc,No 
Http://opendatacommunities.org/id/metropolitan-district-council/leeds,Leeds City Council,City Development,Libraries  Arts & Heritage,Premises,Premises Security Services,162,14-Nov-2014,1411-00245,271.00,R,Adt Fire And Security Plc,No 
Http://opendatacommunities.org/id/metropolitan-district-council/leeds,Leeds City Council,Environment & Housing,Hra,Premises,Premises Security Services,162,05-Nov-2014,1411-00246,177.00,R,Adt Fire And Security Plc,No 
Http://opendatacommunities.org/id/metropolitan-district-council/leeds,Leeds City Council,Environment & Housing,Hra,Premises,Premises Security Services,162,05-Nov-2014,1411-00247,851.30,R,Adt Fire And Security Plc,No 
Http://opendatacommunities.org/id/metropolitan-district-council/leeds,Leeds City Council,Environment & Housing,Hra,Premises,Premises Security Services,162,05-Nov-2014,1411-00248,840.24,R,Adt Fire And Security Plc,No 
Http://opendatacommunities.org/id/metropolitan-district-council/leeds,Leeds City Council,Environment & Housing,Hra,Premises,Premises Security Services,162,04-Nov-2014,1411-00249,125.58,R,Adt Fire And Security Plc,No 
Http://opendatacommunities.org/id/metropolitan-district-council/leeds,Leeds City Council as Accountable Body,Social Services Pooled Budgets,Jcs For People With Learning Disabilitie,Third Party Payments,Home Care,568,06-Nov-2014,1411-00250,608.64,R,Adult Placement Services,No 
Http://opendatacommunities.org/id/metropolitan-district-council/leeds,Leeds City Council as Accountable Body,Social Services Pooled Budgets,Jcs For People With Learning Disabilitie,Third Party Payments,Home Care,568,20-Nov-2014,1411-00251,608.64,R,Adult Placement Services,No 
Http://opendatacommunities.org/id/metropolitan-district-council/leeds,Leeds City Council as Accountable Body,Social Services Pooled Budgets,Jcs For People With Learning Disabilitie,Third Party Payments,Sheltered Accommodation,569,07-Nov-2014,1411-00252,1332.20,R,Adult Placement Services,No 
Http://opendatacommunities.org/id/metropolitan-district-council/leeds,Leeds City Council,Adult Social Care,Services For Adults Under 65 Mental/Dis,Third Party Payments,Nursing Home,570,19-Nov-2014,1411-00253,1544.80,R,Adult Supported Living Ltd,No 
Http://opendatacommunities.org/id/metropolitan-district-council/leeds,Leeds City Council,City Development,Libraries  Arts & Heritage,Supplies and Services,External Audit Fees,261,13-Nov-2014,1411-00254,85.00,R,Advance Stocks Ltd,No 
Http://opendatacommunities.org/id/metropolitan-district-council/leeds,Leeds City Council,Central & Corporate,Information Technology  ,Supplies and Services,Computer Software & Equipment,214,20-Oct-2014,1411-00255,1125.00,R,Advanced Computer,Yes
Http://opendatacommunities.org/id/metropolitan-district-council/leeds,Leeds City Council,Central & Corporate,Commercial Services Trading Services,Supplies and Services,Operational Materials,205,04-Nov-2014,1411-00256,180.75,R,Advanced Labelling Limited,No 
Http://opendatacommunities.org/id/metropolitan-district-council/leeds,Leeds City Council,Childrens Services,Safeguarding Targeted & Specialist,Third Party Payments,Services Rendered By Voluntary Sector,505,28-Nov-2014,1411-00257,1451.77,R,Advantage Healthcare Group Ltd,No 
Http://opendatacommunities.org/id/metropolitan-district-council/leeds,Leeds City Council,Childrens Services,Safeguarding Targeted & Specialist,Third Party Payments,Services Rendered By Voluntary Sector,505,28-Nov-2014,1411-00258,2059.55,R,Advantage Healthcare Group Ltd,No 
Http://opendatacommunities.org/id/metropolitan-district-council/leeds,Leeds City Council,Childrens Services,Safeguarding Targeted & Specialist,Third Party Payments,Services Rendered By Voluntary Sector,505,28-Nov-2014,1411-00259,1430.87,R,Advantage Healthcare Group Ltd,No 
Http://opendatacommunities.org/id/metropolitan-district-council/leeds,Leeds City Council,Childrens Services,Safeguarding Targeted & Specialist,Third Party Payments,Services Rendered By Voluntary Sector,505,04-Nov-2014,1411-00260,2408.94,R,Advantage Healthcare Group Ltd,No 
Http://opendatacommunities.org/id/metropolitan-district-council/leeds,Leeds City Council,Childrens Services,Safeguarding Targeted & Specialist,Third Party Payments,Services Rendered By Voluntary Sector,505,07-Nov-2014,1411-00261,819.82,R,Advantage Healthcare Group Ltd,No 
Http://opendatacommunities.org/id/metropolitan-district-council/leeds,Leeds City Council,Childrens Services,Safeguarding Targeted & Specialist,Third Party Payments,Services Rendered By Voluntary Sector,505,07-Nov-2014,1411-00262,514.48,R,Advantage Healthcare Group Ltd,No 
Http://opendatacommunities.org/id/metropolitan-district-council/leeds,Leeds City Council,Childrens Services,Safeguarding Targeted & Specialist,Third Party Payments,Services Rendered By Voluntary Sector,505,07-Nov-2014,1411-00263,886.95,R,Advantage Healthcare Group Ltd,No 
Http://opendatacommunities.org/id/metropolitan-district-council/leeds,Leeds City Council,Childrens Services,Safeguarding Targeted & Specialist,Third Party Payments,Services Rendered By Voluntary Sector,505,07-Nov-2014,1411-00264,674.08,R,Advantage Healthcare Group Ltd,No 
Http://opendatacommunities.org/id/metropolitan-district-council/leeds,Leeds City Council,Childrens Services,Safeguarding Targeted & Specialist,Third Party Payments,Services Rendered By Voluntary Sector,505,07-Nov-2014,1411-00265,1367.11,R,Advantage Healthcare Group Ltd,No 
Http://opendatacommunities.org/id/metropolitan-district-council/leeds,Leeds City Council,Childrens Services,Safeguarding Targeted & Specialist,Third Party Payments,Services Rendered By Voluntary Sector,505,07-Nov-2014,1411-00266,1002.25,R,Advantage Healthcare Group Ltd,No 
Http://opendatacommunities.org/id/metropolitan-district-council/leeds,Leeds City Council,Childrens Services,Safeguarding Targeted & Specialist,Third Party Payments,Services Rendered By Voluntary Sector,505,07-Nov-2014,1411-00267,127.44,R,Advantage Healthcare Group Ltd,No 
Http://opendatacommunities.org/id/metropolitan-district-council/leeds,Leeds City Council as Accountable Body,Social Services Pooled Budgets,Jcs For People With Learning Disabilitie,Third Party Payments,Home Care,568,06-Nov-2014,1411-00268,288.05,R,Advantage Healthcare Group Ltd,No 
Http://opendatacommunities.org/id/metropolitan-district-council/leeds,Leeds City Council as Accountable Body,Social Services Pooled Budgets,Jcs For People With Learning Disabilitie,Third Party Payments,Home Care,568,06-Nov-2014,1411-00269,3790.40,R,Advantage Healthcare Group Ltd,No 
Http://opendatacommunities.org/id/metropolitan-district-council/leeds,Leeds City Council as Accountable Body,Social Services Pooled Budgets,Jcs For People With Learning Disabilitie,Third Party Payments,Home Care,568,06-Nov-2014,1411-00270,3156.69,R,Advantage Healthcare Group Ltd,No 
Http://opendatacommunities.org/id/metropolitan-district-council/leeds,Leeds City Council as Accountable Body,Social Services Pooled Budgets,Jcs For People With Learning Disabilitie,Third Party Payments,Home Care,568,04-Nov-2014,1411-00271,611.00,R,Advantage Healthcare Group Ltd,No 
Http://opendatacommunities.org/id/metropolitan-district-council/leeds,Leeds City Council as Accountable Body,Social Services Pooled Budgets,Jcs For People With Learning Disabilitie,Third Party Payments,Home Care,568,04-Nov-2014,1411-00272,249.12,R,Advantage Healthcare Group Ltd,No 
Http://opendatacommunities.org/id/metropolitan-district-council/leeds,Leeds City Council as Accountable Body,Social Services Pooled Budgets,Jcs For People With Learning Disabilitie,Third Party Payments,Home Care,568,06-Nov-2014,1411-00273,4079.71,R,Advantage Healthcare Group Ltd,No 
Http://opendatacommunities.org/id/metropolitan-district-council/leeds,Leeds City Council as Accountable Body,Social Services Pooled Budgets,Jcs For People With Learning Disabilitie,Third Party Payments,Home Care,568,10-Nov-2014,1411-00274,3011.69,R,Advantage Healthcare Group Ltd,No 
Http://opendatacommunities.org/id/metropolitan-district-council/leeds,Leeds City Council as Accountable Body,Social Services Pooled Budgets,Jcs For People With Learning Disabilitie,Third Party Payments,Home Care,568,14-Nov-2014,1411-00275,542.42,R,Advantage Healthcare Group Ltd,No 
Http://opendatacommunities.org/id/metropolitan-district-council/leeds,Leeds City Council as Accountable Body,Social Services Pooled Budgets,Jcs For People With Learning Disabilitie,Third Party Payments,Home Care,568,14-Nov-2014,1411-00276,2739.60,R,Advantage Healthcare Group Ltd,No 
Http://opendatacommunities.org/id/metropolitan-district-council/leeds,Leeds City Council as Accountable Body,Social Services Pooled Budgets,Jcs For People With Learning Disabilitie,Third Party Payments,Home Care,568,14-Nov-2014,1411-00277,3165.66,R,Advantage Healthcare Group Ltd,No 
Http://opendatacommunities.org/id/metropolitan-district-council/leeds,Leeds City Council as Accountable Body,Social Services Pooled Budgets,Jcs For People With Learning Disabilitie,Third Party Payments,Home Care,568,21-Nov-2014,1411-00278,3319.41,R,Advantage Healthcare Group Ltd,No 
Http://opendatacommunities.org/id/metropolitan-district-council/leeds,Leeds City Council as Accountable Body,Social Services Pooled Budgets,Jcs For People With Learning Disabilitie,Third Party Payments,Home Care,568,21-Nov-2014,1411-00279,2989.22,R,Advantage Healthcare Group Ltd,No 
Http://opendatacommunities.org/id/metropolitan-district-council/leeds,Leeds City Council as Accountable Body,Social Services Pooled Budgets,Jcs For People With Learning Disabilitie,Third Party Payments,Home Care,568,20-Nov-2014,1411-00280,611.00,R,Advantage Healthcare Group Ltd,No 
Http://opendatacommunities.org/id/metropolitan-district-council/leeds,Leeds City Council as Accountable Body,Social Services Pooled Budgets,Jcs For People With Learning Disabilitie,Third Party Payments,Home Care,568,20-Nov-2014,1411-00281,498.24,R,Advantage Healthcare Group Ltd,No 
Http://opendatacommunities.org/id/metropolitan-district-council/leeds,Leeds City Council as Accountable Body,Social Services Pooled Budgets,Jcs For People With Learning Disabilitie,Third Party Payments,Home Care,568,20-Nov-2014,1411-00282,3352.11,R,Advantage Healthcare Group Ltd,No 
Http://opendatacommunities.org/id/metropolitan-district-council/leeds,Leeds City Council as Accountable Body,Social Services Pooled Budgets,Jcs For People With Learning Disabilitie,Third Party Payments,Home Care,568,06-Nov-2014,1411-00283,373.68,R,Advantage Healthcare Group Ltd,No 
Http://opendatacommunities.org/id/metropolitan-district-council/leeds,Leeds City Council as Accountable Body,Social Services Pooled Budgets,Jcs For People With Learning Disabilitie,Third Party Payments,Home Care,568,06-Nov-2014,1411-00284,311.40,R,Advantage Healthcare Group Ltd,No 
Http://opendatacommunities.org/id/metropolitan-district-council/leeds,Leeds City Council as Accountable Body,Social Services Pooled Budgets,Jcs For People With Learning Disabilitie,Third Party Payments,Home Care,568,06-Nov-2014,1411-00285,560.52,R,Advantage Healthcare Group Ltd,No 
Http://opendatacommunities.org/id/metropolitan-district-council/leeds,Leeds City Council as Accountable Body,Social Services Pooled Budgets,Jcs For People With Learning Disabilitie,Third Party Payments,Home Care,568,06-Nov-2014,1411-00286,498.24,R,Advantage Healthcare Group Ltd,No 
Http://opendatacommunities.org/id/metropolitan-district-council/leeds,Leeds City Council as Accountable Body,Social Services Pooled Budgets,Jcs For People With Learning Disabilitie,Third Party Payments,Home Care,568,06-Nov-2014,1411-00287,311.40,R,Advantage Healthcare Group Ltd,No 
Http://opendatacommunities.org/id/metropolitan-district-council/leeds,Leeds City Council as Accountable Body,Social Services Pooled Budgets,Jcs For People With Learning Disabilitie,Third Party Payments,Home Care,568,06-Nov-2014,1411-00288,373.68,R,Advantage Healthcare Group Ltd,No 
Http://opendatacommunities.org/id/metropolitan-district-council/leeds,Leeds City Council as Accountable Body,Social Services Pooled Budgets,Jcs For People With Learning Disabilitie,Third Party Payments,Home Care,568,06-Nov-2014,1411-00289,747.36,R,Advantage Healthcare Group Ltd,No 
Http://opendatacommunities.org/id/metropolitan-district-council/leeds,Leeds City Council as Accountable Body,Social Services Pooled Budgets,Jcs For People With Learning Disabilitie,Third Party Payments,Home Care,568,06-Nov-2014,1411-00290,498.24,R,Advantage Healthcare Group Ltd,No 
Http://opendatacommunities.org/id/metropolitan-district-council/leeds,Leeds City Council as Accountable Body,Social Services Pooled Budgets,Jcs For People With Learning Disabilitie,Third Party Payments,Home Care,568,06-Nov-2014,1411-00291,373.68,R,Advantage Healthcare Group Ltd,No 
Http://opendatacommunities.org/id/metropolitan-district-council/leeds,Leeds City Council as Accountable Body,Social Services Pooled Budgets,Jcs For People With Learning Disabilitie,Third Party Payments,Home Care,568,06-Nov-2014,1411-00292,611.00,R,Advantage Healthcare Group Ltd,No 
Http://opendatacommunities.org/id/metropolitan-district-council/leeds,Leeds City Council as Accountable Body,Social Services Pooled Budgets,Jcs For People With Learning Disabilitie,Third Party Payments,Residential,580,19-Nov-2014,1411-00293,23004.36,R,Advitam Ltd,No 
Http://opendatacommunities.org/id/metropolitan-district-council/leeds,Leeds City Council,Adult Social Care,Services For Older People - 65 And Over,Third Party Payments,Payments To Voluntary Organisations,561,13-Nov-2014,1411-00294,86216.69,R,Advonet,No 
Http://opendatacommunities.org/id/metropolitan-district-council/leeds,Leeds City Council,Environment & Housing,Environmental Health,Capital,Construction,3,07-Nov-2014,1411-00295,4100.00,C,Adweld,No 
Http://opendatacommunities.org/id/metropolitan-district-council/leeds,Leeds City Council,Adult Social Care,Services For Adults Under 65 Mental/Dis,Third Party Payments,Home Care,568,14-Nov-2014,1411-00296,399.50,R,Affinity Trust,No 
Http://opendatacommunities.org/id/metropolitan-district-council/leeds,Leeds City Council,Adult Social Care,Services For Older People - 65 And Over,Third Party Payments,Home Care,568,14-Nov-2014,1411-00297,1345.60,R,Affinity Trust,No 
Http://opendatacommunities.org/id/metropolitan-district-council/leeds,Leeds City Council,Adult Social Care,Services For Older People Under 65 P/Dis,Third Party Payments,Home Care,568,14-Nov-2014,1411-00298,495.38,R,Affinity Trust,No 
Http://opendatacommunities.org/id/metropolitan-district-council/leeds,Leeds City Council,Adult Social Care,Services For Older People Under 65 P/Dis,Third Party Payments,Home Care,568,14-Nov-2014,1411-00299,312.40,R,Affinity Trust,No 
Http://opendatacommunities.org/id/metropolitan-district-council/leeds,Leeds City Council,Adult Social Care,Services For Older People Under 65 P/Dis,Third Party Payments,Home Care,568,14-Nov-2014,1411-00300,271.66,R,Affinity Trust,No 
Http://opendatacommunities.org/id/metropolitan-district-council/leeds,Leeds City Council,Adult Social Care,Services For Older People Under 65 P/Dis,Third Party Payments,Home Care,568,14-Nov-2014,1411-00301,939.08,R,Affinity Trust,No 
Http://opendatacommunities.org/id/metropolitan-district-council/leeds,Leeds City Council,Adult Social Care,Services For Older People Under 65 P/Dis,Third Party Payments,Home Care,568,14-Nov-2014,1411-00302,495.00,R,Affinity Trust,No 
Http://opendatacommunities.org/id/metropolitan-district-council/leeds,Leeds City Council,Adult Social Care,Services For Older People Under 65 P/Dis,Third Party Payments,Home Care,568,03-Nov-2014,1411-00303,302.76,R,Affinity Trust,No 
Http://opendatacommunities.org/id/metropolitan-district-council/leeds,Leeds City Council,Adult Social Care,Services For Older People Under 65 P/Dis,Third Party Payments,Home Care,568,14-Nov-2014,1411-00304,399.50,R,Affinity Trust,No 
Http://opendatacommunities.org/id/metropolitan-district-council/leeds,Leeds City Council,Adult Social Care,Services For Older People Under 65 P/Dis,Third Party Payments,Home Care,568,03-Nov-2014,1411-00305,168.20,R,Affinity Trust,No 
Http://opendatacommunities.org/id/metropolitan-district-council/leeds,Leeds City Council,Adult Social Care,Services For Older People Under 65 P/Dis,Third Party Payments,Home Care,568,14-Nov-2014,1411-00306,2545.39,R,Affinity Trust,No 
Http://opendatacommunities.org/id/metropolitan-district-council/leeds,Leeds City Council,Adult Social Care,Services For Older People Under 65 P/Dis,Third Party Payments,Home Care,568,14-Nov-2014,1411-00307,575.28,R,Affinity Trust,No 
Http://opendatacommunities.org/id/metropolitan-district-council/leeds,Leeds City Council,Adult Social Care,Services For Older People Under 65 P/Dis,Third Party Payments,Home Care,568,14-Nov-2014,1411-00308,119.85,R,Affinity Trust,No 
Http://opendatacommunities.org/id/metropolitan-district-council/leeds,Leeds City Council,Adult Social Care,Services For Older People Under 65 P/Dis,Third Party Payments,Home Care,568,14-Nov-2014,1411-00309,767.04,R,Affinity Trust,No 
Http://opendatacommunities.org/id/metropolitan-district-council/leeds,Leeds City Council,Adult Social Care,Services For Older People Under 65 P/Dis,Third Party Payments,Home Care,568,14-Nov-2014,1411-00310,311.61,R,Affinity Trust,No 
Http://opendatacommunities.org/id/metropolitan-district-council/leeds,Leeds City Council,Adult Social Care,Services For Older People Under 65 P/Dis,Third Party Payments,Home Care,568,14-Nov-2014,1411-00311,71.91,R,Affinity Trust,No 
Http://opendatacommunities.org/id/metropolitan-district-council/leeds,Leeds City Council,Adult Social Care,Services For Older People Under 65 P/Dis,Third Party Payments,Home Care,568,14-Nov-2014,1411-00312,79.00,R,Affinity Trust,No 
Http://opendatacommunities.org/id/metropolitan-district-council/leeds,Leeds City Council,Adult Social Care,Services For Older People Under 65 P/Dis,Third Party Payments,Home Care,568,19-Nov-2014,1411-00313,526.68,R,Affinity Trust,No 
Http://opendatacommunities.org/id/metropolitan-district-council/leeds,Leeds City Council as Accountable Body,Social Services Pooled Budgets,Jcs For People With Learning Disabilitie,Third Party Payments,Home Care,568,14-Nov-2014,1411-00314,1022.72,R,Affinity Trust,No 
Http://opendatacommunities.org/id/metropolitan-district-council/leeds,Leeds City Council as Accountable Body,Social Services Pooled Budgets,Jcs For People With Learning Disabilitie,Third Party Payments,Home Care,568,14-Nov-2014,1411-00315,1446.52,R,Affinity Trust,No 
Http://opendatacommunities.org/id/metropolitan-district-council/leeds,Leeds City Council as Accountable Body,Social Services Pooled Budgets,Jcs For People With Learning Disabilitie,Third Party Payments,Home Care,568,14-Nov-2014,1411-00316,1889.25,R,Affinity Trust,No 
Http://opendatacommunities.org/id/metropolitan-district-council/leeds,Leeds City Council as Accountable Body,Social Services Pooled Budgets,Jcs For People With Learning Disabilitie,Third Party Payments,Home Care,568,14-Nov-2014,1411-00317,263.67,R,Affinity Trust,No 
Http://opendatacommunities.org/id/metropolitan-district-council/leeds,Leeds City Council as Accountable Body,Social Services Pooled Budgets,Jcs For People With Learning Disabilitie,Third Party Payments,Home Care,568,14-Nov-2014,1411-00318,278.52,R,Affinity Trust,No 
Http://opendatacommunities.org/id/metropolitan-district-council/leeds,Leeds City Council as Accountable Body,Social Services Pooled Budgets,Jcs For People With Learning Disabilitie,Third Party Payments,Home Care,568,14-Nov-2014,1411-00319,759.05,R,Affinity Trust,No 
Http://opendatacommunities.org/id/metropolitan-district-council/leeds,Leeds City Council as Accountable Body,Social Services Pooled Budgets,Jcs For People With Learning Disabilitie,Third Party Payments,Home Care,568,14-Nov-2014,1411-00320,892.50,R,Affinity Trust,No 
Http://opendatacommunities.org/id/metropolitan-district-council/leeds,Leeds City Council as Accountable Body,Social Services Pooled Budgets,Jcs For People With Learning Disabilitie,Third Party Payments,Home Care,568,14-Nov-2014,1411-00321,420.50,R,Affinity Trust,No 
Http://opendatacommunities.org/id/metropolitan-district-council/leeds,Leeds City Council as Accountable Body,Social Services Pooled Budgets,Jcs For People With Learning Disabilitie,Third Party Payments,Home Care,568,14-Nov-2014,1411-00322,719.10,R,Affinity Trust,No 
Http://opendatacommunities.org/id/metropolitan-district-council/leeds,Leeds City Council as Accountable Body,Social Services Pooled Budgets,Jcs For People With Learning Disabilitie,Third Party Payments,Home Care,568,14-Nov-2014,1411-00323,1106.16,R,Affinity Trust,No 
Http://opendatacommunities.org/id/metropolitan-district-council/leeds,Leeds City Council as Accountable Body,Social Services Pooled Budgets,Jcs For People With Learning Disabilitie,Third Party Payments,Home Care,568,13-Nov-2014,1411-00324,960.00,R,Affinity Trust,No 
Http://opendatacommunities.org/id/metropolitan-district-council/leeds,Leeds City Council as Accountable Body,Social Services Pooled Budgets,Jcs For People With Learning Disabilitie,Third Party Payments,Home Care,568,13-Nov-2014,1411-00325,567.29,R,Affinity Trust,No 
Http://opendatacommunities.org/id/metropolitan-district-council/leeds,Leeds City Council as Accountable Body,Social Services Pooled Budgets,Jcs For People With Learning Disabilitie,Third Party Payments,Home Care,568,14-Nov-2014,1411-00326,495.38,R,Affinity Trust,No 
Http://opendatacommunities.org/id/metropolitan-district-council/leeds,Leeds City Council as Accountable Body,Social Services Pooled Budgets,Jcs For People With Learning Disabilitie,Third Party Payments,Home Care,568,14-Nov-2014,1411-00327,799.00,R,Affinity Trust,No 
Http://opendatacommunities.org/id/metropolitan-district-council/leeds,Leeds City Council as Accountable Body,Social Services Pooled Budgets,Jcs For People With Learning Disabilitie,Third Party Payments,Home Care,568,14-Nov-2014,1411-00328,408.00,R,Affinity Trust,No 
Http://opendatacommunities.org/id/metropolitan-district-council/leeds,Leeds City Council as Accountable Body,Social Services Pooled Budgets,Jcs For People With Learning Disabilitie,Third Party Payments,Home Care,568,14-Nov-2014,1411-00329,1454.18,R,Affinity Trust,No 
Http://opendatacommunities.org/id/metropolitan-district-council/leeds,Leeds City Council as Accountable Body,Social Services Pooled Budgets,Jcs For People With Learning Disabilitie,Third Party Payments,Home Care,568,14-Nov-2014,1411-00330,4122.84,R,Affinity Trust,No 
Http://opendatacommunities.org/id/metropolitan-district-council/leeds,Leeds City Council as Accountable Body,Social Services Pooled Budgets,Jcs For People With Learning Disabilitie,Third Party Payments,Home Care,568,20-Nov-2014,1411-00331,399.50,R,Affinity Trust,No 
Http://opendatacommunities.org/id/metropolitan-district-council/leeds,Leeds City Council as Accountable Body,Social Services Pooled Budgets,Jcs For People With Learning Disabilitie,Third Party Payments,Home Care,568,14-Nov-2014,1411-00332,306.48,R,Affinity Trust,No 
Http://opendatacommunities.org/id/metropolitan-district-council/leeds,Leeds City Council as Accountable Body,Social Services Pooled Budgets,Jcs For People With Learning Disabilitie,Third Party Payments,Home Care,568,14-Nov-2014,1411-00333,1396.06,R,Affinity Trust,No 
Http://opendatacommunities.org/id/metropolitan-district-council/leeds,Leeds City Council as Accountable Body,Social Services Pooled Budgets,Jcs For People With Learning Disabilitie,Third Party Payments,Home Care,568,14-Nov-2014,1411-00334,1345.60,R,Affinity Trust,No 
Http://opendatacommunities.org/id/metropolitan-district-council/leeds,Leeds City Council as Accountable Body,Social Services Pooled Budgets,Jcs For People With Learning Disabilitie,Third Party Payments,Home Care,568,14-Nov-2014,1411-00335,262.20,R,Affinity Trust,No 
Http://opendatacommunities.org/id/metropolitan-district-council/leeds,Leeds City Council as Accountable Body,Social Services Pooled Budgets,Jcs For People With Learning Disabilitie,Third Party Payments,Residential,580,13-Nov-2014,1411-00336,3118.15,R,Affinity Trust,No 
Http://opendatacommunities.org/id/metropolitan-district-council/leeds,Leeds City Council as Accountable Body,Social Services Pooled Budgets,Jcs For People With Learning Disabilitie,Third Party Payments,Day Centre,564,14-Nov-2014,1411-00337,1053.36,R,Affinity Trust,No 
Http://opendatacommunities.org/id/metropolitan-district-council/leeds,Leeds City Council as Accountable Body,Social Services Pooled Budgets,Jcs For People With Learning Disabilitie,Third Party Payments,Day Centre,564,14-Nov-2014,1411-00338,1315.84,R,Affinity Trust,No 
Http://opendatacommunities.org/id/metropolitan-district-council/leeds,Leeds City Council as Accountable Body,Social Services Pooled Budgets,Jcs For People With Learning Disabilitie,Third Party Payments,Day Centre,564,14-Nov-2014,1411-00339,3857.60,R,Affinity Trust,No 
Http://opendatacommunities.org/id/metropolitan-district-council/leeds,Leeds City Council as Accountable Body,Social Services Pooled Budgets,Jcs For People With Learning Disabilitie,Third Party Payments,Day Centre,564,14-Nov-2014,1411-00340,648.95,R,Affinity Trust,No 
Http://opendatacommunities.org/id/metropolitan-district-council/leeds,Leeds City Council as Accountable Body,Social Services Pooled Budgets,Jcs For People With Learning Disabilitie,Third Party Payments,Day Centre,564,14-Nov-2014,1411-00341,2212.32,R,Affinity Trust,No 
Http://opendatacommunities.org/id/metropolitan-district-council/leeds,Leeds City Council as Accountable Body,Social Services Pooled Budgets,Jcs For People With Learning Disabilitie,Third Party Payments,Day Centre,564,14-Nov-2014,1411-00342,468.72,R,Affinity Trust,No 
Http://opendatacommunities.org/id/metropolitan-district-council/leeds,Leeds City Council as Accountable Body,Social Services Pooled Budgets,Jcs For People With Learning Disabilitie,Third Party Payments,Home Care,568,06-Nov-2014,1411-00343,276.64,R,Affinity Trust,No 
Http://opendatacommunities.org/id/metropolitan-district-council/leeds,Leeds City Council as Accountable Body,Social Services Pooled Budgets,Jcs For People With Learning Disabilitie,Third Party Payments,Home Care,568,06-Nov-2014,1411-00344,63.92,R,Affinity Trust,No 
Http://opendatacommunities.org/id/metropolitan-district-council/leeds,Leeds City Council as Accountable Body,Social Services Pooled Budgets,Jcs For People With Learning Disabilitie,Third Party Payments,Home Care,568,06-Nov-2014,1411-00345,231.71,R,Affinity Trust,No 
Http://opendatacommunities.org/id/metropolitan-district-council/leeds,Leeds City Council as Accountable Body,Social Services Pooled Budgets,Jcs For People With Learning Disabilitie,Third Party Payments,Home Care,568,06-Nov-2014,1411-00346,31.95,R,Affinity Trust,No 
Http://opendatacommunities.org/id/metropolitan-district-council/leeds,Leeds City Council as Accountable Body,Social Services Pooled Budgets,Jcs For People With Learning Disabilitie,Third Party Payments,Home Care,568,10-Nov-2014,1411-00347,1211.04,R,Affinity Trust,No 
Http://opendatacommunities.org/id/metropolitan-district-council/leeds,Leeds City Council as Accountable Body,Social Services Pooled Budgets,Jcs For People With Learning Disabilitie,Third Party Payments,Home Care,568,06-Nov-2014,1411-00348,1211.04,R,Affinity Trust,No 
Http://opendatacommunities.org/id/metropolitan-district-council/leeds,Leeds City Council as Accountable Body,Social Services Pooled Budgets,Jcs For People With Learning Disabilitie,Third Party Payments,Home Care,568,06-Nov-2014,1411-00349,1211.04,R,Affinity Trust,No 
Http://opendatacommunities.org/id/metropolitan-district-council/leeds,Leeds City Council as Accountable Body,Social Services Pooled Budgets,Jcs For People With Learning Disabilitie,Third Party Payments,Home Care,568,06-Nov-2014,1411-00350,1211.04,R,Affinity Trust,No 
Http://opendatacommunities.org/id/metropolitan-district-council/leeds,Leeds City Council as Accountable Body,Social Services Pooled Budgets,Jcs For People With Learning Disabilitie,Third Party Payments,Home Care,568,13-Nov-2014,1411-00351,3726.40,R,Affinity Trust,No 
Http://opendatacommunities.org/id/metropolitan-district-council/leeds,Leeds City Council as Accountable Body,Social Services Pooled Budgets,Jcs For People With Learning Disabilitie,Third Party Payments,Home Care,568,14-Nov-2014,1411-00352,3160.78,R,Affinity Trust,No 
Http://opendatacommunities.org/id/metropolitan-district-council/leeds,Leeds City Council as Accountable Body,Social Services Pooled Budgets,Jcs For People With Learning Disabilitie,Third Party Payments,Home Care,568,13-Nov-2014,1411-00353,1365.00,R,Affinity Trust,No 
Http://opendatacommunities.org/id/metropolitan-district-council/leeds,Leeds City Council as Accountable Body,Social Services Pooled Budgets,Jcs For People With Learning Disabilitie,Third Party Payments,Home Care,568,20-Nov-2014,1411-00354,360.00,R,Affinity Trust,No 
Http://opendatacommunities.org/id/metropolitan-district-council/leeds,Leeds City Council as Accountable Body,Social Services Pooled Budgets,Jcs For People With Learning Disabilitie,Third Party Payments,Home Care,568,14-Nov-2014,1411-00355,454.95,R,Affinity Trust,No 
Http://opendatacommunities.org/id/metropolitan-district-council/leeds,Leeds City Council as Accountable Body,Social Services Pooled Budgets,Jcs For People With Learning Disabilitie,Third Party Payments,Home Care,568,14-Nov-2014,1411-00356,174.36,R,Affinity Trust,No 
Http://opendatacommunities.org/id/metropolitan-district-council/leeds,Leeds City Council as Accountable Body,Social Services Pooled Budgets,Jcs For People With Learning Disabilitie,Third Party Payments,Home Care,568,14-Nov-2014,1411-00357,1519.10,R,Affinity Trust,No 
Http://opendatacommunities.org/id/metropolitan-district-council/leeds,Leeds City Council as Accountable Body,Social Services Pooled Budgets,Jcs For People With Learning Disabilitie,Third Party Payments,Home Care,568,14-Nov-2014,1411-00358,754.20,R,Affinity Trust,No 
Http://opendatacommunities.org/id/metropolitan-district-council/leeds,Leeds City Council as Accountable Body,Social Services Pooled Budgets,Jcs For People With Learning Disabilitie,Third Party Payments,Home Care,568,14-Nov-2014,1411-00359,964.67,R,Affinity Trust,No 
Http://opendatacommunities.org/id/metropolitan-district-council/leeds,Leeds City Council as Accountable Body,Social Services Pooled Budgets,Jcs For People With Learning Disabilitie,Third Party Payments,Home Care,568,14-Nov-2014,1411-00360,905.04,R,Affinity Trust,No 
Http://opendatacommunities.org/id/metropolitan-district-council/leeds,Leeds City Council as Accountable Body,Social Services Pooled Budgets,Jcs For People With Learning Disabilitie,Third Party Payments,Residential,580,19-Nov-2014,1411-00361,20658.72,R,Affinity Trust North Divisional Office,No 
Http://opendatacommunities.org/id/metropolitan-district-council/leeds,Leeds City Council as Accountable Body,Social Services Pooled Budgets,Jcs For People With Learning Disabilitie,Third Party Payments,Sheltered Accommodation,569,19-Nov-2014,1411-00362,108112.24,R,Affinity Trust North Divisional Office,No 
Http://opendatacommunities.org/id/metropolitan-district-council/leeds,Leeds City Council,Environment & Housing,Parks & Countryside  ,Transport,Hire Of Movable Plant & Machinery,315,08-Oct-2014,1411-00363,950.00,R,Afi Uplift Ltd,Yes
Http://opendatacommunities.org/id/metropolitan-district-council/leeds,Leeds City Council,Environment & Housing,Parks & Countryside  ,Transport,Hire Of Movable Plant & Machinery,315,08-Oct-2014,1411-00364,7600.00,R,Afi Uplift Ltd,Yes
Http://opendatacommunities.org/id/metropolitan-district-council/leeds,Leeds City Council,Environment & Housing,Strategy & Commissioning,Third Party Payments,Supporting Ppl - Block Gross Chargeable,514,28-Nov-2014,1411-00365,3957.68,R,Age Uk Leeds,No 
Http://opendatacommunities.org/id/metropolitan-district-council/leeds,Leeds City Council,Adult Social Care,Services For Older People Under 65 P/Dis,Transfer Payments,Personalised Budgets,627,19-Nov-2014,1411-00366,1001.48,R,REDACTED PERSONAL DATA,No 
Http://opendatacommunities.org/id/metropolitan-district-council/leeds,Leeds City Council,Adult Social Care,Services For Older People Under 65 P/Dis,Third Party Payments,Residential,580,19-Nov-2014,1411-00367,5603.40,R,Agricola House,No 
Http://opendatacommunities.org/id/metropolitan-district-council/leeds,Leeds City Council,Central & Corporate,Executive Support,Supplies and Services,'Well Being' Large Grants Projects,230,04-Nov-2014,1411-00368,2500.00,R,Ahead Partnership Ltd,No 
Http://opendatacommunities.org/id/metropolitan-district-council/leeds,Leeds City Council,Adult Social Care,Services For Older People Under 65 P/Dis,Transfer Payments,Personalised Budgets,627,19-Nov-2014,1411-00369,531.20,R,REDACTED PERSONAL DATA,No 
Http://opendatacommunities.org/id/metropolitan-district-council/leeds,Leeds City Council as Accountable Body,Social Services Pooled Budgets,Leeds Community Equip Store Pooled Budgt,Supplies and Services,Other Equipment,203,14-Nov-2014,1411-00370,1557.00,R,Aidapt Bathrooms Ltd,No 
Http://opendatacommunities.org/id/metropolitan-district-council/leeds,Leeds City Council as Accountable Body,Social Services Pooled Budgets,Leeds Community Equip Store Pooled Budgt,Supplies and Services,Other Equipment,203,13-Nov-2014,1411-00371,98.70,R,Aidapt Bathrooms Ltd,No 
Http://opendatacommunities.org/id/metropolitan-district-council/leeds,Leeds City Council as Accountable Body,Social Services Pooled Budgets,Leeds Community Equip Store Pooled Budgt,Supplies and Services,Other Equipment,203,07-Nov-2014,1411-00372,752.50,R,Aidapt Bathrooms Ltd,No 
Http://opendatacommunities.org/id/metropolitan-district-council/leeds,Leeds City Council as Accountable Body,Social Services Pooled Budgets,Leeds Community Equip Store Pooled Budgt,Supplies and Services,Other Equipment,203,06-Nov-2014,1411-00373,4302.50,R,Aidapt Bathrooms Ltd,No 
Http://opendatacommunities.org/id/metropolitan-district-council/leeds,Leeds City Council as Accountable Body,Social Services Pooled Budgets,Leeds Community Equip Store Pooled Budgt,Supplies and Services,Other Equipment,203,26-Nov-2014,1411-00374,1075.00,R,Aidapt Bathrooms Ltd,No 
Http://opendatacommunities.org/id/metropolitan-district-council/leeds,Leeds City Council as Accountable Body,Social Services Pooled Budgets,Jcs For People With Learning Disabilitie,Transfer Payments,Personal Budgets,627,19-Nov-2014,1411-00375,2839.32,R,REDACTED PERSONAL DATA,No 
Http://opendatacommunities.org/id/metropolitan-district-council/leeds,Leeds City Council,Strategic Landlord,Property and Contracts,Premises,General Maintenance,104,28-Nov-2014,1411-00376,185.00,R,Aidservice Ltd,No 
Http://opendatacommunities.org/id/metropolitan-district-council/leeds,Leeds City Council as Accountable Body,Social Services Pooled Budgets,Jcs For People With Learning Disabilitie,Supplies and Services,Other Equipment,203,12-Nov-2014,1411-00377,573.90,R,Aidservice Ltd,No 
Http://opendatacommunities.org/id/metropolitan-district-council/leeds,Leeds City Council as Accountable Body,Social Services Pooled Budgets,Leeds Community Equip Store Pooled Budgt,Supplies and Services,Other Equipment,203,19-Nov-2014,1411-00378,80.00,R,Aidservice Ltd,No 
Http://opendatacommunities.org/id/metropolitan-district-council/leeds,Leeds City Council,Central & Corporate,Executive Support,Supplies and Services,'Well Being' Large Grants Projects,230,20-Nov-2014,1411-00379,4028.00,R,Aim Education Leeds Limited,No 
Http://opendatacommunities.org/id/metropolitan-district-council/leeds,Leeds City Council,Central & Corporate,Commercial Services Trading Services  ,Supplies and Services,Operational Materials,205,06-Oct-2014,1411-00380,32.47,R,Air Force Pneumati,Yes
Http://opendatacommunities.org/id/metropolitan-district-council/leeds,Leeds City Council,Environment & Housing,Parks & Countryside  ,Transport,Plant Spares,346,30-Oct-2014,1411-00381,2.40,R,Air Force Pneumati,Yes
Http://opendatacommunities.org/id/metropolitan-district-council/leeds,Leeds City Council,Environment & Housing,Parks & Countryside  ,Transport,Plant Spares,346,30-Oct-2014,1411-00382,24.04,R,Air Force Pneumati,Yes
Http://opendatacommunities.org/id/metropolitan-district-council/leeds,Leeds City Council,Environment & Housing,Environmental Health,Supplies and Services,Operational Furniture And Equipment,203,07-Nov-2014,1411-00383,12.84,R,Air Liquide Uk,No 
Http://opendatacommunities.org/id/metropolitan-district-council/leeds,Leeds City Council,Environment & Housing,Environmental Health,Supplies and Services,Operational Furniture And Equipment,203,07-Nov-2014,1411-00384,12.84,R,Air Liquide Uk,No 
Http://opendatacommunities.org/id/metropolitan-district-council/leeds,Leeds City Council,Environment & Housing,Environmental Health,Supplies and Services,Operational Furniture And Equipment,203,07-Nov-2014,1411-00385,59.01,R,Air Liquide Uk,No 
Http://opendatacommunities.org/id/metropolitan-district-council/leeds,Leeds City Council,Adult Social Care,Services For Adults Under 65 Mental/Dis,Third Party Payments,Residential,580,19-Nov-2014,1411-00386,6028.20,R,Aire House,No 
Http://opendatacommunities.org/id/metropolitan-district-council/leeds,Leeds City Council as Accountable Body,Social Services Pooled Budgets,Jcs For People With Learning Disabilitie,Third Party Payments,Residential,580,19-Nov-2014,1411-00387,6863.76,R,Aire House,No 
Http://opendatacommunities.org/id/metropolitan-district-council/leeds,Leeds City Council,City Development,Economic Development,Capital,Other Costs,7,25-Nov-2014,1411-00388,223022.63,C,Aire Valley Land Llp,No 
Http://opendatacommunities.org/id/metropolitan-district-council/leeds,Leeds City Council,Adult Social Care,Services For Older People - 65 And Over,Third Party Payments,Residential,580,19-Nov-2014,1411-00389,10384.24,R,Aire View Residential Home,No 
Http://opendatacommunities.org/id/metropolitan-district-council/leeds,Leeds City Council,Adult Social Care,Services For Older People - 65 And Over,Third Party Payments,Residential Care Dementia,571,19-Nov-2014,1411-00390,33911.69,R,Aire View Residential Home,No 
Http://opendatacommunities.org/id/metropolitan-district-council/leeds,Leeds City Council,Adult Social Care,Services For Older People - 65 And Over,Third Party Payments,Residential Care Dementia,571,19-Nov-2014,1411-00391,6248.60,R,Airedale (Goldsborough),No 
Http://opendatacommunities.org/id/metropolitan-district-council/leeds,Leeds City Council,Adult Social Care,Services For Older People - 65 And Over,Third Party Payments,Residential,580,19-Nov-2014,1411-00392,28405.14,R,Airedale (Goldsborough),No 
Http://opendatacommunities.org/id/metropolitan-district-council/leeds,Leeds City Council,Childrens Services,Safeguarding Targeted & Specialist  ,Third Party Payments,Placement Support,550,30-Sep-2014,1411-00393,195.00,R,Aireville Campus,Yes
Http://opendatacommunities.org/id/metropolitan-district-council/leeds,Leeds City Council as Accountable Body,Social Services Pooled Budgets,Jcs For People With Learning Disabilitie,Third Party Payments,Residential,580,19-Nov-2014,1411-00394,6175.64,R,Aitch Care Homes,No 
Http://opendatacommunities.org/id/metropolitan-district-council/leeds,Leeds City Council,Environment & Housing,Parks & Countryside,Supplies and Services,Operational Materials,205,07-Nov-2014,1411-00395,462.00,R,Aitkens Sportsturf Ltd,No 
Http://opendatacommunities.org/id/metropolitan-district-council/leeds,Leeds City Council,Environment & Housing,Parks & Countryside,Supplies and Services,Operational Materials,205,07-Nov-2014,1411-00396,203.70,R,Aitkens Sportsturf Ltd,No 
Http://opendatacommunities.org/id/metropolitan-district-council/leeds,Leeds City Council,Environment & Housing,Parks & Countryside,Supplies and Services,Operational Materials,205,07-Nov-2014,1411-00397,607.50,R,Aitkens Sportsturf Ltd,No 
Http://opendatacommunities.org/id/metropolitan-district-council/leeds,Leeds City Council,Adult Social Care,Services For Older People - 65 And Over,Third Party Payments,Home Care,568,14-Nov-2014,1411-00398,7768.19,R,Aj Social Care,No 
Http://opendatacommunities.org/id/metropolitan-district-council/leeds,Leeds City Council,Adult Social Care,Services For Older People Under 65 P/Dis,Third Party Payments,Home Care,568,14-Nov-2014,1411-00399,1039.50,R,Aj Social Care,No 
Http://opendatacommunities.org/id/metropolitan-district-council/leeds,Leeds City Council,Adult Social Care,Services For Older People Under 65 P/Dis,Third Party Payments,Home Care,568,14-Nov-2014,1411-00400,2656.00,R,Aj Social Care,No 
Http://opendatacommunities.org/id/metropolitan-district-council/leeds,Leeds City Council,Central & Corporate,Commercial Services Trading Services,Supplies and Services,Operational Materials,205,28-Nov-2014,1411-00401,246.00,R,Ajm Fixings & Power Tools Ltd,No 
Http://opendatacommunities.org/id/metropolitan-district-council/leeds,Leeds City Council,Central & Corporate,Commercial Services Trading Services,Supplies and Services,Operational Materials,205,28-Nov-2014,1411-00402,187.00,R,Ajm Fixings & Power Tools Ltd,No 
Http://opendatacommunities.org/id/metropolitan-district-council/leeds,Leeds City Council,Central & Corporate,Commercial Services Trading Services,Supplies and Services,Operational Materials,205,07-Nov-2014,1411-00403,459.80,R,Ajm Fixings & Power Tools Ltd,No 
